Workbook

Sheet Summary
A1: COMPANY NAME
A2: CIVIL INFRASTRUCTURE WORKS
A3: Quantity as per Sewerage BOQ (Total No's of Manhole =349 Nos, House Conncetion =241 Nos)
A4: Summary of Manhole Quantities | D4: Type-01 | F4: Type-02 | H4: Type-03 | J4: Type-04 | L4: Type-05 | N4: Type-06 | P4: Type-07 | R4: House Connection
A5: Sr.# | B5: Decription of items | C5: Unit | D5: Qty MH-1 No | E5: Total Qty | F5: Qty MH-1 No | G5: Total Qty | H5: Qty MH-1 No | I5: Total Qty | J5: Qty MH-1 No | K5: Total Qty | L5: Qty MH-1 No | M5: Total Qty | N5: Qty MH-1 No | O5: Total Qty | P5: Qty MH-1 No | Q5: Total Qty | R5: Qty MH-1 No | S5: Total Qty | T5: Grand Total Quantity | U5: Remarks
D6: Total Nos= | E6: 195 | F6: Total Nos= | G6: 70 | H6: Total Nos= | I6: 13 | J6: Total Nos= | K6: 15 | L6: Total Nos= | M6: 31 | N6: Total Nos= | O6: 23 | P6: Total Nos= | Q6: 2 | R6: Total Nos= | S6: 241 | W6: Total Qty | X6: Total Rs.
A7: 1 | B7: Excavation | C7: Cft | D7: =+'M.H 4''dia (Type-I)'!I11 -> 408 | E7: =D7*E$6 -> 79,633.13 | F7: =+'M.H 4''dia (Type-II.'!I11 -> 613 | G7: =F7*G$6 -> 42,879 | H7: =+'M.H 4''dia (Type-III'!I11 -> 1,053 | I7: =H7*I$6 -> 13,689 | J7: =+'M.H 4''dia (Type-IV'!I11 -> 1,377 | K7: =J7*K$6 -> 20,655 | L7: =+'M.H 5''dia (Type-V'!I11 -> 1,300 | M7: =L7*M$6 -> 40,300 | N7: =+'M.H 5''dia (Type-VI'!I11 -> 1,700 | O7: =N7*O$6 -> 39,100 | P7: =+'M.H 6.5''dia (Type-VII'!I11 -> 2,381 | Q7: =P7*Q$6 -> 4,761 | R7: =+'M.H 2.5''dia (H,Conc)'!I11 -> 125 | S7: =R7*S$6 -> 30,125 | T7: =+Q7+O7+M7+K7+I7+G7+E7+S7 -> 271,143
A8: =A7+1 -> 2 | B8: Dressing of bed | C8: Sft | D8: =+'M.H 4''dia (Type-I)'!I14 -> 364 | E8: =D8*$E$6 -> 71,036 | F8: =+'M.H 4''dia (Type-II.'!I14 -> 364 | G8: 25,500 | H8: =+'M.H 4''dia (Type-III'!I14 -> 481 | I8: 6,251 | J8: =+'M.H 4''dia (Type-IV'!I14 -> 481 | K8: 7,213 | L8: =+'M.H 5''dia (Type-V'!I14 -> 672 | M8: 20,822 | N8: =+'M.H 5''dia (Type-VI'!I14 -> 672 | O8: 15,448 | P8: =+'M.H 6.5''dia (Type-VII'!I14 -> 1,043 | Q8: 2,086 | R8: =+'M.H 2.5''dia (H,Conc)'!I14 -> 71 | S8: 17,086 | T8: =+Q8+O8+M8+K8+I8+G8+E8+S8 -> 165,443
A9: 3 | B9: Crurshed Stone Bedding 1" Down | C9: Cft | D9: =+'M.H 4''dia (Type-I)'!I17 -> 22 | E9: 4,305 | F9: =+'M.H 4''dia (Type-II.'!I17 -> 22 | G9: 1,545 | H9: =+'M.H 4''dia (Type-III'!I17 -> 53 | I9: 695 | J9: =+'M.H 4''dia (Type-IV'!I17 -> 53 | K9: 801 | L9: =+'M.H 5''dia (Type-V'!I17 -> 67 | M9: 2,082 | N9: =+'M.H 5''dia (Type-VI'!I17 -> 67 | O9: 1,545 | P9: =+'M.H 6.5''dia (Type-VII'!I17 -> 91 | Q9: 181 | R9: =+'M.H 2.5''dia (H,Conc)'!I17 -> 5 | S9: 1,128 | T9: =+Q9+O9+M9+K9+I9+G9+E9+S9 -> 12,283
A10: =+A9+1 -> 4 | B10: PCC Concrete 1:4:8 | C10: Cft | D10: =+'M.H 4''dia (Type-I)'!I20 -> 25 | E10: 4,851 | F10: =+'M.H 4''dia (Type-II.'!I20 -> 25 | G10: 1,741 | H10: =+'M.H 4''dia (Type-III'!I20 -> 31 | I10: 402 | J10: =+'M.H 4''dia (Type-IV'!I20 -> 31 | K10: 464 | L10: =+'M.H 5''dia (Type-V'!I20 -> 40 | M10: 1,242 | N10: =+'M.H 5''dia (Type-VI'!I20 -> 40 | O10: 922 | P10: =+'M.H 6.5''dia (Type-VII'!I20 -> 56 | Q10: 112 | R10: =+'M.H 2.5''dia (H,Conc)'!I20 -> 3 | S10: 659 | T10: =+Q10+O10+M10+K10+I10+G10+E10+S10 -> 10,394
A11: 5 | B11: Pacca Brick Work with 1:3 C/S Mortar | C11: Cft | D11: =+'M.H 4''dia (Type-I)'!I25 -> 39 | E11: 7,577 | F11: =+'M.H 4''dia (Type-II.'!I25 -> 75 | G11: 5,256 | H11: =+'M.H 4''dia (Type-III'!I25 -> 83 | I11: 1,073 | J11: =+'M.H 4''dia (Type-IV'!I25 -> 155 | K11: 2,325 | L11: =+'M.H 5''dia (Type-V'!I25 -> 114 | M11: 3,546 | N11: =+'M.H 5''dia (Type-VI'!I25 -> 201 | O11: 4,622 | P11: =+'M.H 6.5''dia (Type-VII'!I25 -> 277 | Q11: 553 | R11: =+'M.H 2.5''dia (H,Conc)'!I25 -> 31 | S11: 7,490 | T11: =+Q11+O11+M11+K11+I11+G11+E11+S11 -> 32,442
A12: 6 | B12: Plaster Work with 1:3 C/S Mortar | C12: Sft | D12: =+'M.H 4''dia (Type-I)'!I31 -> 101 | E12: 19,631 | F12: =+'M.H 4''dia (Type-II.'!I31 -> 190 | G12: 13,315 | H12: =+'M.H 4''dia (Type-III'!I32 -> 203 | I12: 2,645 | J12: =+'M.H 4''dia (Type-IV'!I32 -> 330 | K12: 4,945 | L12: =+'M.H 5''dia (Type-V'!I32 -> 267 | M12: 8,282 | N12: =+'M.H 5''dia (Type-VI'!I32 -> 418 | O12: 9,625 | P12: =+'M.H 6.5''dia (Type-VII'!I32 -> 562 | Q12: 1,125 | R12: =+'M.H 2.5''dia (H,Conc)'!I31 -> 97 | S12: 23,340 | T12: 82,908
A13: 7 | B13: Bituman Coating | C13: Sft | D13: =+'M.H 4''dia (Type-I)'!I35 -> 120 | E13: 23,307 | F13: =+'M.H 4''dia (Type-II.'!I35 -> 223 | G13: 15,625 | H13: =+'M.H 4''dia (Type-III'!I37 -> 258 | I13: 3,351 | J13: =+'M.H 4''dia (Type-IV'!I37 -> 415 | K13: 6,223 | L13: =+'M.H 5''dia (Type-V'!I39 -> 167 | M13: 5,170 | N13: =+'M.H 5''dia (Type-VI'!I39 -> 258 | O13: 5,932 | P13: =+'M.H 6.5''dia (Type-VII'!I39 -> 339 | Q13: 678 | R13: =+'M.H 2.5''dia (H,Conc)'!I35 -> 103 | S13: 24,902 | T13: =+Q13+O13+M13+K13+I13+G13+E13+S13 -> 85,188 | V13: =+T13/2 -> 42594.00693 | W13: =V13*1.4 -> 59,631.61
A14: 8 | B14: Concrete 1:2:4 | C14: Cft | D14: =+'M.H 4''dia (Type-I)'!I41 -> 21 | E14: 4,104 | F14: =+'M.H 4''dia (Type-II.'!I41 -> 21 | G14: 1,473 | H14: =+'M.H 4''dia (Type-III'!I43 -> 23 | I14: 299 | J14: =+'M.H 4''dia (Type-IV'!I43 -> 25 | K14: 381 | L14: =+'M.H 5''dia (Type-V'!I45 -> 35 | M14: 1,099 | N14: =+'M.H 5''dia (Type-VI'!I45 -> 38 | O14: 885 | P14: =+'M.H 6.5''dia (Type-VII'!I45 -> 66 | Q14: 132 | R14: =+'M.H 2.5''dia (H,Conc)'!I41 -> 11 | S14: 2,668 | T14: 11,042
A15: 9 | B15: Manhole Cover 22" dia | C15: No | D15: =+'M.H 4''dia (Type-I)'!I44 -> 1 | E15: 195 | F15: =+'M.H 4''dia (Type-II.'!I44 -> 1 | G15: 70 | H15: =+'M.H 4''dia (Type-III'!I46 -> 1 | I15: 13 | J15: =+'M.H 4''dia (Type-IV'!I46 -> 1 | K15: 15 | L15: =+'M.H 5''dia (Type-V'!I48 -> 1 | M15: 31 | N15: =+'M.H 5''dia (Type-VI'!I48 -> 1 | O15: 23 | P15: =+'M.H 6.5''dia (Type-VII'!I48 -> 1 | Q15: 2 | R15: =+'M.H 2.5''dia (H,Conc)'!I44 -> 1 | S15: 241 | T15: =+Q15+O15+M15+K15+I15+G15+E15+S15 -> 590
A16: 10 | B16: Malleable Iron Step | C16: No | D16: =+'M.H 4''dia (Type-I)'!I47 -> 3 | E16: 585 | F16: =+'M.H 4''dia (Type-II.'!I47 -> 6 | G16: 420 | H16: =+'M.H 4''dia (Type-III'!I49 -> 7 | I16: 91 | J16: =+'M.H 4''dia (Type-IV'!I49 -> 11 | K16: 165 | L16: =+'M.H 5''dia (Type-V'!I51 -> 8 | M16: 248 | N16: =+'M.H 5''dia (Type-VI'!I51 -> 12 | O16: 276 | P16: =+'M.H 6.5''dia (Type-VII'!I51 -> 13 | Q16: 26 | R16: =+'M.H 2.5''dia (H,Conc)'!I47 -> 0 | S16: 0 | T16: =+Q16+O16+M16+K16+I16+G16+E16+S16 -> 1,811
A17: 11 | B17: Backfill | C17: Cft | D17: =+'M.H 4''dia (Type-I)'!I51 -> 266 | E17: 51,850 | F17: =+'M.H 4''dia (Type-II.'!I51 -> 399 | G17: 27,919 | H17: =+'M.H 4''dia (Type-III'!I53 -> 744 | I17: 9,676 | J17: =+'M.H 4''dia (Type-IV'!I53 -> 973 | K17: 14,600 | L17: =+'M.H 5''dia (Type-V'!I55 -> 869 | M17: 26,934 | N17: =+'M.H 5''dia (Type-VI'!I55 -> 1,136 | O17: 26,132 | P17: =+'M.H 6.5''dia (Type-VII'!I55 -> 1,476 | Q17: 2,952 | R17: =+'M.H 2.5''dia (H,Conc)'!I51 -> 62 | S17: 14,990 | T17: 175,053
B18: Calculation Sheet
A19: A | B19: Bricks Work | C19: Cft | E19: =+T11 -> 32,441.60
B20: No's of Bricks (13.5 Nos/Cft) | C20: No | E20: =+(E19-E22)*13.5 -> 375,388
B21: Cement (Morter for Brick Work) | C21: Bags | E21: =((E19*15%*1.27)*1/4)/1.25 -> 1,236.02
B22: Sand (Moter for Brick Work) | C22: Cft | E22: =((E19*15%*1.27)*3/4) -> 4,635.09
A24: B | B24: Plaster Work(1:4) 1/2" thick | C24: Cft | E24: =+T12*0.04 -> 3,316.32
B25: Cement (for Plaster Work) | C25: Bags | E25: =((E24*1.27)*1/4)/1.25 -> 842.34
B26: Sand (for Plaster Work) | C26: Cft | E26: =((E24*1.27)*3/4) -> 3,158.79
A28: C | B28: Concrete PCC (1:4:8) | C28: Cft | E28: =+T10 -> 10,393.5
B29: Cement (for Concete Work) | C29: Bags | E29: =((E28*1.54)*1/13)/1.25 -> 984.99
B30: Sand (for Concete Work) | C30: Cft | E30: =((E28*1.54)*4/13) -> 4,924.93
B31: Crush Aggr (for Concete Work) | C31: Cft | E31: =((E28*1.54)*8/13) -> 9,849.86
A33: D | B33: Concrete (1:2:4) | C33: Cft | E33: =+T14 -> 11,042.20
B34: Cement (for Concete Work) | C34: Bags | E34: =((E33*1.54)*1/7)/1.25 -> 1,943.43
B35: Sand (for Concete Work) | C35: Cft | E35: =((E33*1.54)*2/7) -> 4,858.57
B36: Crush Aggr (for Concete Work) | C36: Cft | E36: =((E33*1.54)*4/7) -> 9,717.13
A38: Basic Material for Sewerage Manholes
A39: 1 | B39: Bricks (1st Class) | C39: No's | D39: =+E20*1 -> 375,388
A40: 2 | B40: Cement | C40: Bag's | D40: =+(E21+E25+E34+E29)*105% -> 5,257 | E40: 5% Wastage
A41: 3 | B41: Sand | C41: Cft | D41: =+(E22+E26+E35+E30)*110% -> 19,335 | E41: 10% Wastage
A42: 4 | B42: Crush Aggr | C42: Cft | D42: =+(E36+E31+T9)*110% -> 35,035 | E42: 10% Wastage
S46: Bituman Coating area | T46: =+T13 -> 85,188 | U46: =T46/2*1 -> 42,594.01
S47: Cover Area Kg/sft | T47: =+(20*0.453)/100 -> 0.09 | U47: =1.5*(20*0.453)/100 -> 0.14
T48: =T46*T47 -> 7,718 | U48: =U46*U47 -> 5,789
U49: =+U48*0.6 -> 3473.115325
U50: =+U48*0.4 -> 2315.410217

Sheet M.H 4'dia (Type-I)
D1: PROJECT NAME | J1: Manhole #
E2: CIVIL INFRASTRUCTURE WORKS | J2: Road Name :
F3: RATE ANALYSIS | J3: Sewer Line (Ø) | K3: 0.67 ft
A4: Manhole Data;
B5: Manhole Inner dia(Ø) | C5: 4.00 ft | D5: Depth of Manhole, | E5: 6.00 ft | F5: Wall Thick-I | G5: 0.75 ft | H5: Wall Thick-II | I5: =13.5/12 -> 1.125 ft | J5: MH Type-I | K5: Assumed Quantity, | L5: 1
A7: Sr.# | B7: Item of Works | D7: ABSTRACT OF QUANTIES | J7: RATE ANALYSIS
B8: Decription of items | D8: No. | E8: Length (ft) | F8: width (ft) | G8: Height (ft) | H8: Unit | I8: Qty | J8: Unit Rate | K8: Amount | N8: Total Qty | O8: Total Rs.
A9: 1 | B9: Excavation
B10: Excavation | D10: =+L5 -> 1 | E10: =+C5+3.5+0.75 -> 8.25 | F10: =+E10 -> 8.25 | G10: =+E5 -> 6.00 | I10: =PRODUCT(D10:G10) -> 408.38 | J10: 12.00 | K10: =I11*J10 -> 4,900.50
B11: Qty | D11: Total: | H11: Cft | I11: =SUM(I10:I10) -> 408.38 | L11: =+K10/$K$55 -> 6% | N11: =+I11*$J$56 -> 79,633.13 | O11: =+I11*J10*$J$56 -> 955,598
A12: =A9+1 -> 2 | B12: Dressing of bed
B13: Dressing of bed | D13: =D10 -> 1 | E13: =+E10 -> 8.25 | F13: =((3.14*(($E$10-0.75)*($E$10-0.75))/4)) -> 44.16 | I13: =PRODUCT(D13:G13) -> 364.29 | J13: 4.00 | K13: =I14*J13 -> 1,457.16
B14: Qty | D14: Total: | H14: Sft | I14: =SUM(I13:I13) -> 364.29 | L14: =+K13/$K$55 -> 2% | N14: =+I14*$J$56 -> 71,036.37 | O14: =+I14*J13*$J$56 -> 284,145
A15: 3 | B15: Crurshed Stone Bedding
B16: Crurshed Bedding 1" Down | D16: =D10 -> 1 | E16: Area= | F16: =+F13 -> 44.16 | G16: 0.50 | I16: =PRODUCT(D16:G16) -> 22.08 | J16: 140.00 | K16: =I17*J16 -> 3,090.94
B17: Qty | D17: Total: | H17: Cft | I17: =SUM(I16:I16) -> 22.08 | L17: =+K16/$K$55 -> 4% | N17: =+I17*$J$56 -> 4,305.23 | O17: =+I17*J16*$J$56 -> 602,733
A18: =+A15+1 -> 4 | B18: PCC Concrete 1:4:8
B19: Base Concrete 1:4:8 | D19: =D13 -> 1 | E19: Area= | F19: =((3.14*(($E$10-1.75)*($E$10-1.75))/4)) -> 33.17 | G19: 0.75 | I19: =PRODUCT(D19:G19) -> 24.87 | J19: 280.00 | K19: =I20*J19 -> 6,964.91
B20: Qty | D20: Total: | H20: Cft | I20: =SUM(I19:I19) -> 24.87 | L20: =+K19/$K$55 -> 9% | N20: =+I20*$J$56 -> 4,850.56 | O20: =+I20*J19*$J$56 -> 1,358,158
A21: =+A18+1 -> 5 | B21: Pacca Brick Work with 1:3 C/S Mortar
B22: Wall (Circular) | D22: 0 | E22: =3.142*($C$5+$I$5) -> 16.10 | F22: =+I5 -> 1.13 | I22: =PRODUCT(D22:G22) -> 0.00 | J22: 420.00 | K22: =+I25*J22 -> 16,319.78 | N22: =3.14*4 -> 12.56
B23: Wall (Circular) | D23: =+D19 -> 1 | E23: =3.142*($C$5+$I$5) -> 16.10 | F23: =$G$5 -> 0.75 | G23: =+G10-G16-G19-G24-G37 -> 1.25 | I23: =PRODUCT(D23:G23) -> 15.10
B24: Wall (Dome) | D24: =D23 -> 1 | E24: =((3.142*($C$5+$G$5))+(3.142*(1.833+$G$5)))/2 -> 11.52 | F24: =$G$5 -> 0.75 | G24: 2.75 | I24: =PRODUCT(D24:G24) -> 23.76
B25: Qty | D25: Total: | H25: Cft | I25: =SUM(I22:I24) -> 38.86 | L25: =+K22/$K$55 -> 21% | N25: =+I25*$J$56 -> 7,577.04 | O25: =+I25*J22*$J$56 -> 3,182,357
A26: =+A21+1 -> 6 | B26: Plaster Work with 1:3 C/S Mortar
B27: Wall (Circular) Outer Side | D27: =D24 -> 1 | E27: =3.142*(+$C$5+$G$5+$G$5) -> 17.28 | G27: =+G23 -> 1.25 | I27: =PRODUCT(D27:G27) -> 21.60 | J27: 48.00 | K27: =+I31*J27 -> 4,832.26
B28: Wall (Dome) Outer Side | D28: =D27 -> 1 | E28: =((3.142*($C$5+$G$5+$G$5))+(3.142*(1.833+$G$5+$G$5)))/2 -> 13.88 | G28: =+G24 -> 2.75 | I28: =PRODUCT(D28:G28) -> 38.16
B29: Wall (Circular) inner Side | D29: 1 | E29: =3.142*(4) -> 12.57 | G29: =+G27 -> 1.25 | I29: =PRODUCT(D29:G29) -> 15.71
B30: Wall (Dome Inner Side | D30: 1 | E30: =((3.142*(4))+(3.142*(1.833)))/2 -> 9.16 | G30: =+G28 -> 2.75 | I30: =PRODUCT(D30:G30) -> 25.20
B31: Qty | D31: Total: | H31: Sft | I31: =SUM(I27:I30) -> 100.67 | L31: =+K27/$K$55 -> 6% | N31: =+I31*$J$56 -> 19,631.05 | O31: =+I31*J27*$J$56 -> 942,290
A32: =+A26+1 -> 7 | B32: Bituman Coating (2 Coats)
B33: Wall (Circular) Outer Side | D33: 2 | E33: =+E27 -> 17.28 | G33: =+G27 -> 1.25 | I33: =PRODUCT(D33:G33) -> 43.20 | J33: 14.00 | K33: =I35*J33 -> 1,673.34
B34: Wall (Dome) Outer Side | D34: =D33 -> 2 | E34: =+E28 -> 13.88 | G34: =+G28 -> 2.75 | I34: =PRODUCT(D34:G34) -> 76.32
B35: Qty | D35: Total: | H35: Sft | I35: =SUM(I33:I34) -> 119.52 | L35: =+K33/$K$55 -> 2% | N35: =+I35*$J$56 -> 23,307.19 | O35: =+I35*J33*$J$56 -> 326,301
A36: =+A32+1 -> 8 | B36: Concrete 1:2:4
B37: Top Cover Slab | D37: =D24 -> 1 | E37: Area= | F37: =((3.14*(3.83*3.83))/4) -> 11.52 | G37: 0.75 | I37: =PRODUCT(D37:G37) -> 8.64 | J37: 450.00 | K37: =I41*J37 -> 9,471.68
B38: D/d of Manhole Cover | D38: -1 | E38: Area= | F38: =((3.14*(1.83*1.83))/4) -> 2.63 | G38: 0.75 | I38: =PRODUCT(D38:G38) -> -1.97
B39: Beching PCC | D39: =+D37 -> 1 | E39: Area= | F39: =((3.14*(C5*C5))/4) -> 12.56 | G39: =0.33+($K$3+0.16) -> 1.16 | I39: =PRODUCT(D39:G39) -> 14.53
B40: D/d of Pipe | D40: -1 | E40: Area= | F40: =((3.14*(K3*K3))/4)/2 -> 0.17 | G40: =($K$3+0.16) -> 0.83 | I40: =PRODUCT(D40:G40) -> -0.14
B41: Qty | D41: Total: | H41: Cft | I41: =SUM(I37:I40) -> 21.05 | L41: =+K37/$K$55 -> 12% | N41: =+I41*$J$56 -> 4,104.39 | O41: =+I41*J37*$J$56 -> 1,846,977
A42: =+A36+1 -> 9 | B42: Manhole Cover 22" dia
B43: 22" dia MH Cover | D43: 1 | I43: =PRODUCT(D43:G43) -> 1.00 | J43: =5050+12185 -> 17235.00 | K43: =I44*J43 -> 17,235.00
B44: Qty | D44: Total: | H44: No | I44: =SUM(I43:I43) -> 1.00 | L44: =+K43/$K$55 -> 22% | N44: =+I44*$J$56 -> 195.00 | O44: =+I44*J43*$J$56 -> 3,360,825
A45: =+A42+1 -> 10 | B45: Malleable Iron Step
B46: Iron Step @1' C/C | D46: 1 | F46: Brick Work Height | G46: =+(G23+G24)-1 -> 3.00 | I46: =ROUND(G46,0) -> 3.00 | J46: 1550.00 | K46: =I47*J46 -> 4,650.00
B47: Qty | D47: Total: | H47: No | I47: =SUM(I46:I46) -> 3.00 | L47: =+K46/$K$55 -> 6% | N47: =+I47*$J$56 -> 585.00 | O47: =+I47*J46*$J$56 -> 906,750
A48: =+A45+1 -> 11 | B48: Backfill
B49: Backfill (Total Excavation) | D49: =+D10 -> 1 | G49: =I11 -> 408.38 | I49: =PRODUCT(D49:G49) -> 408.38 | J49: 32.00 | K49: =I51*J49 -> 8,508.72
B50: D/d of Manhole | D50: -1 | E50: Area | F50: =3.14*(($C$5+$G$5+$G$5)*($C$5+$G$5+$G$5))/4 -> 23.75 | G50: =+G10 -> 6.00 | I50: =PRODUCT(D50:G50) -> -142.48
B51: Qty | D51: Total: | H51: Cft | I51: =SUM(I49:I50) -> 265.90 | L51: =+K49/$K$55 -> 11% | N51: =+I51*$J$56 -> 51,850.01 | O51: =+I51*J49*$J$56 -> 1,659,200
L52: =SUM(L10:L51) -> 100%
I53: Cost for 10 Rft
I54: Overhead 10%
I55: Total Cost = | K55: =SUM(K9:K54) -> 79,104
I56: Total of Manhole= | J56: =+Summary!E6 -> 195 | K56: No's
I57: Grand Total Cost= | K57: =+K55*J56 -> 15,425,335 | N57: =SUM(N9:N56) -> 267,087.53 | O57: =SUM(O9:O56) -> 15,425,335

Sheet M.H 4'dia (Type-II.
D1: =+'M.H 4''dia (Type-I)'!D1:I1 -> PROJECT NAME | J1: Manhole #
E2: CIVIL INFRASTRUCTURE WORKS | J2: Road Name :
F3: RATE ANALYSIS | J3: Sewer Line(Ø) | K3: 0.67 ft
A4: Manhole Data;
B5: Manhole Inner dia(Ø) | C5: 4.00 ft | D5: Depth of Manhole, | E5: 9.00 ft | F5: Wall Thick-I | G5: 0.75 ft | H5: Wall Thick-II | I5: =13.5/12 -> 1.125 ft | J5: MH Type-II | K5: Assumed Quantity, | L5: 1
A7: Sr.# | B7: Item of Works | D7: ABSTRACT OF QUANTIES | J7: RATE ANALYSIS
B8: Decription of items | D8: No. | E8: Length (ft) | F8: width (ft) | G8: Height (ft) | H8: Unit | I8: Qty | J8: Unit Rate | K8: Amount | N8: Total Qty | O8: Total Rs.
A9: 1 | B9: Excavation
B10: Excavation | D10: =+L5 -> 1 | E10: =+C5+3.5+0.75 -> 8.25 | F10: =+E10 -> 8.25 | G10: =+E5 -> 9.00 | I10: =PRODUCT(D10:G10) -> 612.56 | J10: =+'M.H 4''dia (Type-I)'!J10:J11 -> 12.00 | K10: =I11*J10 -> 7,350.75
B11: Qty | D11: Total: | H11: Cft | I11: =SUM(I10:I10) -> 612.56 | L11: =+K10/$K$55 -> 7% | N11: =+I11*$J$56 -> 42,879.38 | O11: =+I11*J10*$J$56 -> 514,553
A12: =A9+1 -> 2 | B12: Dressing of bed
B13: Dressing of bed | D13: =D10 -> 1 | E13: =+E10 -> 8.25 | F13: =((3.14*(($E$10-0.75)*($E$10-0.75))/4)) -> 44.16 | I13: =PRODUCT(D13:G13) -> 364.29 | J13: =+'M.H 4''dia (Type-I)'!J13:J14 -> 4.00 | K13: =I14*J13 -> 1,457.16
B14: Qty | D14: Total: | H14: Sft | I14: =SUM(I13:I13) -> 364.29 | L14: =+K13/$K$55 -> 1% | N14: =+I14*$J$56 -> 25,500.23 | O14: =+I14*J13*$J$56 -> 102,001
A15: 3 | B15: Crurshed Stone Bedding
B16: Crurshed Bedding 1" Down | D16: =D10 -> 1 | E16: Area= | F16: =+F13 -> 44.16 | G16: 0.50 | I16: =PRODUCT(D16:G16) -> 22.08 | J16: =+'M.H 4''dia (Type-I)'!J16:J17 -> 140.00 | K16: =I17*J16 -> 3,090.94
B17: Qty | D17: Total: | H17: Cft | I17: =SUM(I16:I16) -> 22.08 | L17: =+K16/$K$55 -> 3% | N17: =+I17*$J$56 -> 1,545.47 | O17: =+I17*J16*$J$56 -> 216,366
A18: =+A15+1 -> 4 | B18: PCC Concrete 1:4:8
B19: Base Concrete 1:4:8 | D19: =D13 -> 1 | E19: Area= | F19: =((3.14*(($E$10-1.75)*($E$10-1.75))/4)) -> 33.17 | G19: 0.75 | I19: =PRODUCT(D19:G19) -> 24.87 | J19: =+'M.H 4''dia (Type-I)'!J19:J20 -> 280.00 | K19: =I20*J19 -> 6,964.91
B20: Qty | D20: Total: | H20: Cft | I20: =SUM(I19:I19) -> 24.87 | L20: =+K19/$K$55 -> 6% | N20: =+I20*$J$56 -> 1,741.23 | O20: =+I20*J19*$J$56 -> 487,544
A21: =+A18+1 -> 5 | B21: Pacca Brick Work with 1:3 C/S Mortar
B22: Wall (Circular) | D22: 1 | E22: 0.00 | F22: =+I5 -> 1.13 | I22: =PRODUCT(D22:G22) -> 0.00 | J22: =+'M.H 4''dia (Type-I)'!J22:J25 -> 420.00 | K22: =+I25*J22 -> 31,536.88
B23: Wall (Circular) | D23: =+D19 -> 1 | E23: =3.142*($C$5+$I$5) -> 16.10 | F23: =$G$5 -> 0.75 | G23: =+G10-G16-G19-G24-G37 -> 4.25 | I23: =PRODUCT(D23:G23) -> 51.33
B24: Wall (Dome) | D24: =D23 -> 1 | E24: =((3.142*($C$5+$G$5))+(3.142*(1.833+$G$5)))/2 -> 11.52 | F24: =$G$5 -> 0.75 | G24: 2.75 | I24: 23.76
B25: Qty | D25: Total: | H25: Cft | I25: =SUM(I22:I24) -> 75.09 | L25: =+K22/$K$55 -> 28% | N25: =+I25*$J$56 -> 5,256.15 | O25: =+I25*J22*$J$56 -> 2,207,582
A26: =+A21+1 -> 6 | B26: Plaster Work with 1:3 C/S Mortar
B27: Wall (Circular) Outer Side | D27: =D24 -> 1 | E27: =3.142*(+$C$5+$G$5+$G$5) -> 17.28 | G27: =+G23 -> 4.25 | I27: =PRODUCT(D27:G27) -> 73.44 | J27: =+'M.H 4''dia (Type-I)'!J27:J31 -> 48.00 | K27: =+I31*J27 -> 9,130.51
B28: Wall (Dome) Outer Side | D28: =D27 -> 1 | E28: =((3.142*($C$5+$G$5+$G$5))+(3.142*(1.833+$G$5+$G$5)))/2 -> 13.88 | G28: =+G24 -> 2.75 | I28: =PRODUCT(D28:G28) -> 38.16
B29: Wall (Circular) inner Side | D29: 1 | E29: =3.142*(4) -> 12.57 | G29: =+G27 -> 4.25 | I29: =PRODUCT(D29:G29) -> 53.41
B30: Wall (Dome Inner Side | D30: 1 | E30: =((3.142*(4))+(3.142*(1.833)))/2 -> 9.16 | G30: =+G28 -> 2.75 | I30: =PRODUCT(D30:G30) -> 25.20
B31: Qty | D31: Total: | H31: Sft | I31: =SUM(I27:I30) -> 190.22 | L31: =+K27/$K$55 -> 8% | N31: =+I31*$J$56 -> 13,315.33 | O31: =+I31*J27*$J$56 -> 639,136
A32: =+A26+1 -> 7 | B32: Bituman Coating (2 Coats)
B33: Wall (Circular) Outer Side | D33: 2 | E33: =+E27 -> 17.28 | G33: =+G27 -> 4.25 | I33: =PRODUCT(D33:G33) -> 146.89 | J33: =+'M.H 4''dia (Type-I)'!J33:J35 -> 14.00 | K33: =I35*J33 -> 3,124.94
B34: Wall (Dome) Outer Side | D34: =D33 -> 2 | E34: =+E28 -> 13.88 | G34: =+G28 -> 2.75 | I34: =PRODUCT(D34:G34) -> 76.32
B35: Qty | D35: Total: | H35: Sft | I35: =SUM(I33:I34) -> 223.21 | L35: =+K33/$K$55 -> 3% | N35: =+I35*$J$56 -> 15,624.70 | O35: =+I35*J33*$J$56 -> 218,746
A36: =+A32+1 -> 8 | B36: Concrete 1:2:4
B37: Top Cover Slab | D37: =D24 -> 1 | E37: Area= | F37: =((3.14*(3.83*3.83))/4) -> 11.52 | G37: 0.75 | I37: =PRODUCT(D37:G37) -> 8.64 | J37: =+'M.H 4''dia (Type-I)'!J37:J41 -> 450.00 | K37: =I41*J37 -> 9,471.68
B38: D/d of Manhole Cover | D38: -1 | E38: Area= | F38: =((3.14*(1.83*1.83))/4) -> 2.63 | G38: 0.75 | I38: =PRODUCT(D38:G38) -> -1.97
B39: Beching PCC | D39: =+D37 -> 1 | E39: Area= | F39: =((3.14*(C5*C5))/4) -> 12.56 | G39: =0.33+($K$3+0.16) -> 1.16 | I39: =PRODUCT(D39:G39) -> 14.53
B40: D/d of Pipe | D40: -1 | E40: Area= | F40: =((3.14*(K3*K3))/4)/2 -> 0.17 | G40: =($K$3+0.16) -> 0.83 | I40: =PRODUCT(D40:G40) -> -0.14
B41: Qty | D41: Total: | H41: Cft | I41: =SUM(I37:I40) -> 21.05 | L41: =+K37/$K$55 -> 9% | N41: =+I41*$J$56 -> 1,473.37 | O41: =+I41*J37*$J$56 -> 663,018
A42: =+A36+1 -> 9 | B42: Manhole Cover 22" dia
B43: 22" dia MH Cover | D43: 1 | I43: =PRODUCT(D43:G43) -> 1.00 | J43: =+'M.H 4''dia (Type-I)'!J43:J44 -> 17235.00 | K43: =I44*J43 -> 17,235.00
B44: Qty | D44: Total: | H44: No | I44: =SUM(I43:I43) -> 1.00 | L44: =+K43/$K$55 -> 15% | N44: =+I44*$J$56 -> 70.00 | O44: =+I44*J43*$J$56 -> 1,206,450
A45: =+A42+1 -> 10 | B45: Malleable Iron Step
B46: Iron Step @1' C/C | D46: 1 | F46: Brick Work Height | G46: =+(G23+G24)-1 -> 6.00 | I46: =ROUND(G46,0) -> 6.00 | J46: =+'M.H 4''dia (Type-I)'!J46:J47 -> 1550.00 | K46: =I47*J46 -> 9,300.00
B47: Qty | D47: Total: | H47: No | I47: =SUM(I46:I46) -> 6.00 | L47: =+K46/$K$55 -> 8% | N47: =+I47*$J$56 -> 420.00 | O47: =+I47*J46*$J$56 -> 651,000
A48: =+A45+1 -> 11 | B48: Backfill
B49: Backfill (Total Excavation) | D49: =+D10 -> 1 | G49: =I11 -> 612.56 | I49: =PRODUCT(D49:G49) -> 612.56 | J49: =+'M.H 4''dia (Type-I)'!J49:J51 -> 32.00 | K49: =I51*J49 -> 12,763.08
B50: D/d of Manhole | D50: -1 | E50: Area | F50: =3.14*(($C$5+$G$5+$G$5)*($C$5+$G$5+$G$5))/4 -> 23.75 | G50: =+G10 -> 9.00 | I50: =PRODUCT(D50:G50) -> -213.72
B51: Qty | D51: Total: | H51: Cft | I51: =SUM(I49:I50) -> 398.85 | L51: =+K49/$K$55 -> 11% | N51: =+I51*$J$56 -> 27,919.24 | O51: =+I51*J49*$J$56 -> 893,416
L52: =SUM(L9:L51) -> 100%
I53: Cost for 10 Rft
I54: Overhead 10%
I55: Total Cost = | K55: =SUM(K9:K54) -> 111,426
I56: Total of Manhole= | J56: =+Summary!G6 -> 70 | K56: No's
I57: Grand Total Cost= | K57: =+K55*J56 -> 7,799,810 | N57: =SUM(N9:N56) -> 135,745.10 | O57: =SUM(O9:O56) -> 7,799,810

Sheet M.H 4'dia (Type-III
D1: =+'M.H 4''dia (Type-II.'!D1:I1 -> PROJECT NAME | J1: Manhole #
E2: CIVIL INFRASTRUCTURE WORKS | J2: Road Name :
F3: RATE ANALYSIS | J3: Sewer Line (Ø) | K3: 0.83 ft
A4: Manhole Data;
B5: Manhole Inner dia(Ø) | C5: 4.00 ft | D5: Depth of Manhole, | E5: 13.00 ft | F5: Wall Thick-I | G5: 0.75 ft | H5: Wall Thick-II | I5: =13.5/12 -> 1.125 ft | J5: MH Type-III | K5: Assumed Quantity, | L5: 1
A7: Sr.# | B7: Item of Works | D7: ABSTRACT OF QUANTIES | J7: RATE ANALYSIS
B8: Decription of items | D8: No. | E8: Length (ft) | F8: width (ft) | G8: Height (ft) | H8: Unit | I8: Qty | J8: Unit Rate | K8: Amount | N8: Total Qty | O8: Total Rs.
A9: 1 | B9: Excavation
B10: Excavation | D10: =+L5 -> 1 | E10: =+C5+4.25+0.75 -> 9.00 | F10: =+E10 -> 9.00 | G10: =+E5 -> 13.00 | I10: =PRODUCT(D10:G10) -> 1053.00 | J10: =+'M.H 4''dia (Type-II.'!J10:J11 -> 12.00 | K10: =I11*J10 -> 12,636.00
B11: Qty | D11: Total: | H11: Cft | I11: =SUM(I10:I10) -> 1053.00 | L11: =+K10/$K$55 -> 9% | N11: =+I11*$J$56 -> 13,689.00 | O11: =+I11*J10*$J$56 -> 164,268
A12: =A9+1 -> 2 | B12: Dressing of bed
B13: Dressing of bed | D13: =D10 -> 1 | E13: =+E10 -> 9.00 | F13: =((3.14*(($E$10-0.75)*($E$10-0.75))/4)) -> 53.43 | I13: =PRODUCT(D13:G13) -> 480.86 | J13: =+'M.H 4''dia (Type-II.'!J13:J14 -> 4.00 | K13: =I14*J13 -> 1,923.45
B14: Qty | D14: Total: | H14: Sft | I14: =SUM(I13:I13) -> 480.86 | L14: =+K13/$K$55 -> 1% | N14: =+I14*$J$56 -> 6,251.20 | O14: =+I14*J13*$J$56 -> 25,005
A15: 3 | B15: Crurshed Stone Bedding
B16: Crurshed Bedding 1" Down | D16: =D10 -> 1 | E16: Area= | F16: =+F13 -> 53.43 | G16: 1.00 | I16: =PRODUCT(D16:G16) -> 53.43 | J16: =+'M.H 4''dia (Type-II.'!J16:J17 -> 140.00 | K16: =I17*J16 -> 7,480.07
B17: Qty | D17: Total: | H17: Cft | I17: =SUM(I16:I16) -> 53.43 | L17: =+K16/$K$55 -> 5% | N17: =+I17*$J$56 -> 694.58 | O17: =+I17*J16*$J$56 -> 97,241
A18: =+A15+1 -> 4 | B18: PCC Concrete 1:4:8
B19: Base Concrete 1:4:8 | D19: =D13 -> 1 | E19: Area= | F19: =((3.14*(($E$10-1.75)*($E$10-1.75))/4)) -> 41.26 | G19: 0.75 | I19: =PRODUCT(D19:G19) -> 30.95 | J19: =+'M.H 4''dia (Type-II.'!J19:J20 -> 280.00 | K19: =I20*J19 -> 8,664.93
B20: Qty | D20: Total: | H20: Cft | I20: =SUM(I19:I19) -> 30.95 | L20: =+K19/$K$55 -> 6% | N20: =+I20*$J$56 -> 402.30 | O20: =+I20*J19*$J$56 -> 112,644
A21: =+A18+1 -> 5 | B21: Pacca Brick Work with 1:3 C/S Mortar
B22: Wall (Circular) | D22: 1 | E22: =3.142*($C$5+$I$5) -> 16.10 | F22: =+I5 -> 1.13 | G22: =+$G$10-$G$16-$G$19-G23-G23-G39 -> 0.00 | I22: =PRODUCT(D22:G22) -> 0.00 | J22: =+'M.H 4''dia (Type-II.'!J22:J25 -> 420.00 | K22: =+I25*J22 -> 34,660.72
B23: Wall (Circular) | D23: =+D19 -> 1 | E23: =3.142*($C$5+$G$5) -> 14.92 | F23: =$G$5 -> 0.75 | G23: =8-G24 -> 5.25 | I23: =PRODUCT(D23:G23) -> 58.77
B24: Wall (Dome) | D24: =D23 -> 1 | E24: =((3.142*($C$5+$G$5))+(3.142*(1.833+$G$5)))/2 -> 11.52 | F24: =$G$5 -> 0.75 | G24: 2.75 | I24: 23.76
B25: Qty | D25: Total: | H25: Cft | I25: =SUM(I22:I24) -> 82.53 | L25: =+K22/$K$55 -> 25% | N25: =+I25*$J$56 -> 1,072.83 | O25: =+I25*J22*$J$56 -> 450,589
A26: =+A21+1 -> 6 | B26: Plaster Work with 1:3 C/S Mortar
B27: Wall (Circular) Outer Side | D27: =D24 -> 1 | E27: =3.142*(+$C$5+$I$5+$I$5) -> 19.64 | G27: =+G22 -> 0.00 | I27: =PRODUCT(D27:G27) -> 0.00 | J27: =+'M.H 4''dia (Type-II.'!J27:J31 -> 48.00 | K27: =+I32*J27 -> 9,764.95
B28: Wall (Circular) Outer Side | D28: =+D27 -> 1 | E28: =3.142*(+$C$5+$G$5+$G$5) -> 17.28 | G28: =+G23 -> 5.25 | I28: =PRODUCT(D28:G28) -> 90.73
B29: Wall (Dome) Outer Side | D29: =D27 -> 1 | E29: =((3.142*($C$5+$G$5+$G$5))+(3.142*(1.833+$G$5+$G$5)))/2 -> 13.88 | G29: =+G24 -> 2.75 | I29: =PRODUCT(D29:G29) -> 38.16
B30: Wall (Circular) inner Side | D30: 1 | E30: =3.142*($C$5) -> 12.57 | G30: =+G27+G28-G41 -> 3.93 | I30: =PRODUCT(D30:G30) -> 49.35
B31: Wall (Dome Inner Side | D31: =D30 -> 1 | E31: =((3.142*($C$5))+(3.142*(1.833)))/2 -> 9.16 | G31: =+G29 -> 2.75 | I31: =PRODUCT(D31:G31) -> 25.20
B32: Qty | D32: Total: | H32: Sft | I32: =SUM(I27:I31) -> 203.44 | L32: =+K27/$K$55 -> 7% | N32: =+I32*$J$56 -> 2,644.67 | O32: =+I32*J27*$J$56 -> 126,944
A33: =+A26+1 -> 7 | B33: Bituman Coating (2 Coats)
B34: Wall (Circular) Outer Side | D34: 2 | E34: =+E27 -> 19.64 | G34: =+G27 -> 0.00 | I34: =PRODUCT(D34:G34) -> 0.00 | J34: 14.00 | K34: =I37*J34 -> 3,608.81
B35: Wall (Circular) Outer Side | D35: =+D34 -> 2 | E35: =+E28 -> 17.28 | G35: =+G28 -> 5.25 | I35: =PRODUCT(D35:G35) -> 181.45
B36: Wall (Dome) Outer Side | D36: =D34 -> 2 | E36: =+E29 -> 13.88 | G36: =+G29 -> 2.75 | I36: =PRODUCT(D36:G36) -> 76.32
B37: Qty | D37: Total: | H37: Sft | I37: =SUM(I34:I36) -> 257.77 | L37: =+K34/$K$55 -> 3% | N37: =+I37*$J$56 -> 3,351.04 | O37: =+I37*J34*$J$56 -> 46,915
A38: =+A33+1 -> 8 | B38: Concrete 1:2:4
B39: Top Cover Slab | D39: =D24 -> 1 | E39: Area= | F39: =((3.14*(3.83*3.83))/4) -> 11.52 | G39: 0.75 | I39: =PRODUCT(D39:G39) -> 8.64 | J39: 450.00 | K39: =I43*J39 -> 10,356.73
B40: D/d of Manhole Cover | D40: -1 | E40: Area= | F40: =((3.14*(1.83*1.83))/4) -> 2.63 | G40: 0.75 | I40: =PRODUCT(D40:G40) -> -1.97
B41: Beching PCC | D41: =+D39 -> 1 | E41: Area= | F41: =((3.14*(C5*C5))/4) -> 12.56 | G41: =0.33+($K$3+0.16) -> 1.32 | I41: =PRODUCT(D41:G41) -> 16.62
B42: D/d of Pipe | D42: -1 | E42: Area= | F42: =((3.14*(K3*K3))/4)/2 -> 0.27 | G42: =($K$3+0.16) -> 0.99 | I42: =PRODUCT(D42:G42) -> -0.27
B43: Qty | D43: Total: | H43: Cft | I43: =SUM(I39:I42) -> 23.01 | L43: =+K39/$K$55 -> 7% | N43: =+I43*$J$56 -> 299.19 | O43: =+I43*J39*$J$56 -> 134,638
A44: =+A38+1 -> 9 | B44: Manhole Cover 22" dia
B45: 22" dia MH Cover | D45: 1 | I45: =PRODUCT(D45:G45) -> 1.00 | J45: 17235.00 | K45: =I46*J45 -> 17,235.00
B46: Qty | D46: Total: | H46: No | I46: =SUM(I45:I45) -> 1.00 | L46: =+K45/$K$55 -> 12% | N46: =+I46*$J$56 -> 13.00 | O46: =+I46*J45*$J$56 -> 224,055
A47: =+A44+1 -> 10 | B47: Malleable Iron Step
B48: Iron Step @1' C/C | D48: 1 | F48: Brick Work Height | G48: =+(G23+G22+G24)-1 -> 7.00 | I48: =ROUND(G48,0) -> 7.00 | J48: 1550.00 | K48: =I49*J48 -> 10,850.00
B49: Qty | D49: Total: | H49: No | I49: =SUM(I48:I48) -> 7.00 | L49: =+K48/$K$55 -> 8% | N49: =+I49*$J$56 -> 91.00 | O49: =+I49*J48*$J$56 -> 141,050
A50: =+A47+1 -> 11 | B50: Backfill
B51: Backfill (Total Excavation) | D51: =+D10 -> 1 | G51: =I11 -> 1053.00 | I51: =PRODUCT(D51:G51) -> 1053.00 | J51: 32.00 | K51: =I53*J51 -> 23,817.56
B52: D/d of Manhole | D52: -1 | E52: Area | F52: =3.14*(($C$5+$G$5+$G$5)*($C$5+$G$5+$G$5))/4 -> 23.75 | G52: =+G10 -> 13.00 | I52: =PRODUCT(D52:G52) -> -308.70
B53: Qty | D53: Total: | H53: Cft | I53: =SUM(I51:I52) -> 744.30 | L53: =+K51/$K$55 -> 17% | N53: =+I53*$J$56 -> 9,675.88 | O53: =+I53*J51*$J$56 -> 309,628
L54: =SUM(L10:L53) -> 100%
I55: Total Cost = | K55: =SUM(K9:K54) -> 140,998
I56: Total of Manhole= | J56: =+Summary!I6 -> 13 | K56: No's
I57: Grand Total Cost= | K57: =+K55*J56 -> 1,832,977 | N57: =SUM(N9:N56) -> 38,184.70 | O57: =SUM(O9:O56) -> 1,832,977

Sheet M.H 4'dia (Type-IV
D1: =+'M.H 4''dia (Type-III'!D1 -> PROJECT NAME | J1: Manhole #
E2: CIVIL INFRASTRUCTURE WORKS | J2: Road Name :
F3: RATE ANALYSIS | J3: Sewer Line (Ø) | K3: =12.5/12 -> 1.04 ft
A4: Manhole Data;
B5: Manhole Inner dia(Ø) | C5: 4.00 ft | D5: Depth of Manhole, | E5: 17.00 ft | F5: Wall Thick-I | G5: 0.75 ft | H5: Wall Thick-II | I5: =13.5/12 -> 1.125 ft | J5: MH Type-IV | K5: Assumed Quantity, | L5: 1
A7: Sr.# | B7: Item of Works | D7: ABSTRACT OF QUANTIES | J7: RATE ANALYSIS
B8: Decription of items | D8: No. | E8: Length (ft) | F8: width (ft) | G8: Height (ft) | H8: Unit | I8: Qty | J8: Unit Rate | K8: Amount | N8: Total Qty | O8: Total Rs.
A9: 1 | B9: Excavation
B10: Excavation | D10: =+L5 -> 1 | E10: =+C5+4.25+0.75 -> 9.00 | F10: =+E10 -> 9.00 | G10: =+E5 -> 17.00 | I10: =PRODUCT(D10:G10) -> 1377.00 | J10: =+'M.H 4''dia (Type-II.'!J10:J11 -> 12.00 | K10: =I11*J10 -> 16,524.00
B11: Qty | D11: Total: | H11: Cft | I11: =SUM(I10:I10) -> 1377.00 | L11: =+K10/$K$55 -> 8% | N11: =+I11*$J$56 -> 20,655.00 | O11: =+I11*J10*$J$56 -> 247,860
A12: =A9+1 -> 2 | B12: Dressing of bed
B13: Dressing of bed | D13: =D10 -> 1 | E13: =+E10 -> 9.00 | F13: =((3.14*(($E$10-0.75)*($E$10-0.75))/4)) -> 53.43 | I13: =PRODUCT(D13:G13) -> 480.86 | J13: =+'M.H 4''dia (Type-II.'!J13:J14 -> 4.00 | K13: =I14*J13 -> 1,923.45
B14: Qty | D14: Total: | H14: Sft | I14: =SUM(I13:I13) -> 480.86 | L14: =+K13/$K$55 -> 1% | N14: =+I14*$J$56 -> 7,212.92 | O14: =+I14*J13*$J$56 -> 28,852
A15: 3 | B15: Crurshed Stone Bedding
B16: Crurshed Bedding 1" Down | D16: =D10 -> 1 | E16: Area= | F16: =+F13 -> 53.43 | G16: 1.00 | I16: =PRODUCT(D16:G16) -> 53.43 | J16: =+'M.H 4''dia (Type-II.'!J16:J17 -> 140.00 | K16: =I17*J16 -> 7,480.07
B17: Qty | D17: Total: | H17: Cft | I17: =SUM(I16:I16) -> 53.43 | L17: =+K16/$K$55 -> 4% | N17: =+I17*$J$56 -> 801.44 | O17: =+I17*J16*$J$56 -> 112,201
A18: =+A15+1 -> 4 | B18: PCC Concrete 1:4:8
B19: Base Concrete 1:4:8 | D19: =D13 -> 1 | E19: Area= | F19: =((3.14*(($E$10-1.75)*($E$10-1.75))/4)) -> 41.26 | G19: 0.75 | I19: =PRODUCT(D19:G19) -> 30.95 | J19: =+'M.H 4''dia (Type-II.'!J19:J20 -> 280.00 | K19: =I20*J19 -> 8,664.93
B20: Qty | D20: Total: | H20: Cft | I20: =SUM(I19:I19) -> 30.95 | L20: =+K19/$K$55 -> 4% | N20: =+I20*$J$56 -> 464.19 | O20: =+I20*J19*$J$56 -> 129,974
A21: =+A18+1 -> 5 | B21: Pacca Brick Work with 1:3 C/S Mortar
B22: Wall (Circular) | D22: 1 | E22: =3.142*($C$5+$I$5) -> 16.10 | F22: =+I5 -> 1.13 | G22: =+$G$10-$G$16-$G$19-G23-G23-G39 -> 4.00 | I22: =PRODUCT(D22:G22) -> 72.46 | J22: =+'M.H 4''dia (Type-II.'!J22:J25 -> 420.00 | K22: =+I25*J22 -> 65,094.91
B23: Wall (Circular) | D23: =+D19 -> 1 | E23: =3.142*($C$5+$G$5) -> 14.92 | F23: =$G$5 -> 0.75 | G23: =8-G24 -> 5.25 | I23: =PRODUCT(D23:G23) -> 58.77
B24: Wall (Dome) | D24: =D23 -> 1 | E24: =((3.142*($C$5+$G$5))+(3.142*(1.833+$G$5)))/2 -> 11.52 | F24: =$G$5 -> 0.75 | G24: 2.75 | I24: 23.76
B25: Qty | D25: Total: | H25: Cft | I25: =SUM(I22:I24) -> 154.99 | L25: =+K22/$K$55 -> 33% | N25: =+I25*$J$56 -> 2,324.82 | O25: =+I25*J22*$J$56 -> 976,424
A26: =+A21+1 -> 6 | B26: Bituman Coating (2 Coats)
B27: Wall (Circular) Outer Side | D27: =D24 -> 1 | E27: =3.142*(+$C$5+$I$5+$I$5) -> 19.64 | G27: =+G22 -> 4.00 | I27: =PRODUCT(D27:G27) -> 78.55 | J27: =+'M.H 4''dia (Type-II.'!J27:J31 -> 48.00 | K27: =+I32*J27 -> 15,822.72
B28: Wall (Circular) Outer Side | D28: =+D27 -> 1 | E28: =3.142*(+$C$5+$G$5+$G$5) -> 17.28 | G28: =+G23 -> 5.25 | I28: =PRODUCT(D28:G28) -> 90.73
B29: Wall (Dome) Outer Side | D29: =D27 -> 1 | E29: =((3.142*($C$5+$G$5+$G$5))+(3.142*(1.833+$G$5+$G$5)))/2 -> 13.88 | G29: =+G24 -> 2.75 | I29: =PRODUCT(D29:G29) -> 38.16
B30: Wall (Circular) inner Side | D30: 1 | E30: =3.142*($C$5) -> 12.57 | G30: =+G27+G28-G41 -> 7.72 | I30: =PRODUCT(D30:G30) -> 97.00
B31: Wall (Dome Inner Side | D31: =D30 -> 1 | E31: =((3.142*($C$5))+(3.142*(1.833)))/2 -> 9.16 | G31: =+G29 -> 2.75 | I31: =PRODUCT(D31:G31) -> 25.20
B32: Qty | D32: Total: | H32: Sft | I32: =SUM(I27:I31) -> 329.64 | L32: =K27/$K$55 -> 8% | N32: =+I32*$J$56 -> 4,944.60 | O32: =+I32*J27*$J$56 -> 237,341
A33: =+A26+1 -> 7 | B33: Bituman Coating
B34: Wall (Circular) Outer Side | D34: 2 | E34: =+E27 -> 19.64 | G34: =+G27 -> 4.00 | I34: =PRODUCT(D34:G34) -> 157.10 | J34: 14.00 | K34: =I37*J34 -> 5,808.21
B35: Wall (Circular) Outer Side | D35: =+D34 -> 2 | E35: =+E28 -> 17.28 | G35: =+G28 -> 5.25 | I35: =PRODUCT(D35:G35) -> 181.45
B36: Wall (Dome) Outer Side | D36: =D34 -> 2 | E36: =+E29 -> 13.88 | G36: =+G29 -> 2.75 | I36: =PRODUCT(D36:G36) -> 76.32
B37: Qty | D37: Total: | H37: Sft | I37: =SUM(I34:I36) -> 414.87 | L37: =+K34/$K$55 -> 3% | N37: =+I37*$J$56 -> 6,223.08 | O37: =+I37*J34*$J$56 -> 87,123
A38: =+A33+1 -> 8 | B38: Concrete 1:2:4
B39: Top Cover Slab | D39: =D24 -> 1 | E39: Area= | F39: =((3.14*(3.83*3.83))/4) -> 11.52 | G39: 0.75 | I39: =PRODUCT(D39:G39) -> 8.64 | J39: 450.00 | K39: =I43*J39 -> 11,425.77
B40: D/d of Manhole Cover | D40: -1 | E40: Area= | F40: =((3.14*(1.83*1.83))/4) -> 2.63 | G40: 0.75 | I40: =PRODUCT(D40:G40) -> -1.97
B41: Beching PCC | D41: =+D39 -> 1 | E41: Area= | F41: =((3.14*(C5*C5))/4) -> 12.56 | G41: =0.33+($K$3+0.16) -> 1.53 | I41: =PRODUCT(D41:G41) -> 19.24
B42: D/d of Pipe | D42: -1 | E42: Area= | F42: =((3.14*(K3*K3))/4)/2 -> 0.43 | G42: =($K$3+0.16) -> 1.20 | I42: =PRODUCT(D42:G42) -> -0.51
B43: Qty | D43: Total: | H43: Cft | I43: =SUM(I39:I42) -> 25.39 | L43: =+K39/$K$55 -> 6% | N43: =+I43*$J$56 -> 380.86 | O43: =+I43*J39*$J$56 -> 171,387
A44: =+A38+1 -> 9 | B44: Manhole Cover 22" dia
B45: 22" dia MH Cover | D45: 1 | I45: =PRODUCT(D45:G45) -> 1.00 | J45: 17235.00 | K45: =I46*J45 -> 17,235.00
B46: Qty | D46: Total: | H46: No | I46: =SUM(I45:I45) -> 1.00 | L46: =+K45/$K$55 -> 9% | N46: =+I46*$J$56 -> 15.00 | O46: =+I46*J45*$J$56 -> 258,525
A47: =+A44+1 -> 10 | B47: Malleable Iron Step
B48: Iron Step @1' C/C | D48: 1 | F48: Brick Work Height | G48: =+(G23+G22+G24)-1 -> 11.00 | I48: =ROUND(G48,0) -> 11.00 | J48: 1550.00 | K48: =I49*J48 -> 17,050.00
B49: Qty | D49: Total: | H49: No | I49: =SUM(I48:I48) -> 11.00 | L49: =+K48/$K$55 -> 9% | N49: =+I49*$J$56 -> 165.00 | O49: =+I49*J48*$J$56 -> 255,750
A50: =+A47+1 -> 11 | B50: Backfill
B51: Backfill (Total Excavation) | D51: =+D10 -> 1 | G51: =I11 -> 1377.00 | I51: =PRODUCT(D51:G51) -> 1377.00 | J51: 32.00 | K51: =I53*J51 -> 31,146.04
B52: D/d of Manhole | D52: -1 | E52: Area | F52: =3.14*(($C$5+$G$5+$G$5)*($C$5+$G$5+$G$5))/4 -> 23.75 | G52: =+G10 -> 17.00 | I52: =PRODUCT(D52:G52) -> -403.69
B53: Qty | D53: Total: | H53: Cft | I53: =SUM(I51:I52) -> 973.31 | L53: =+K51/$K$55 -> 16% | N53: =+I53*$J$56 -> 14,599.71 | O53: =+I53*J51*$J$56 -> 467,191
L54: =SUM(L10:L53) -> 100%
I55: Total Cost = | K55: =SUM(K9:K54) -> 198,175
I56: Total of Manhole= | J56: =+Summary!K6 -> 15 | K56: No's
I57: Grand Total Cost= | K57: =+K55*J56 -> 2,972,626 | N57: =SUM(N9:N56) -> 57,786.62 | O57: =SUM(O9:O56) -> 2,972,626

Sheet M.H 5'dia (Type-V
D1: =+'M.H 4''dia (Type-IV'!D1 -> PROJECT NAME | J1: Manhole #
E2: CIVIL INFRASTRUCTURE WORKS | J2: Road Name :
F3: RATE ANALYSIS | J3: Sewer Line (Ø) | K3: 1.00 ft
A4: Manhole Data;
B5: Manhole Inner dia(Ø) | C5: 5.00 ft | D5: Depth of Manhole, | E5: 13.00 ft | F5: Wall Thick-I | G5: 0.75 ft | H5: Wall Thick-II | I5: =13.5/12 -> 1.125 ft | J5: MH Type-V | K5: Assumed Quantity, | L5: 1
A7: Sr.# | B7: Item of Works | D7: ABSTRACT OF QUANTIES | J7: RATE ANALYSIS
B8: Decription of items | D8: No. | E8: Length (ft) | F8: width (ft) | G8: Height (ft) | H8: Unit | I8: Qty | J8: Unit Rate | K8: Amount | N8: Total Qty | O8: Total Rs.
A9: 1 | B9: Excavation
B10: Excavation | D10: =+L5 -> 1 | E10: =+C5+4.25+0.75 -> 10.00 | F10: =+E10 -> 10.00 | G10: =+E5 -> 13.00 | I10: =PRODUCT(D10:G10) -> 1300.00 | J10: 12.00 | K10: =I11*J10 -> 15,600.00
B11: Qty | D11: Total: | H11: Cft | I11: =SUM(I10:I10) -> 1300.00 | L11: =+K10/$K$57 -> 9% | N11: =+I11*$J$58 -> 40,300.00 | O11: =+I11*J10*$J$58 -> 483,600
A12: =A9+1 -> 2 | B12: Dressing of bed
B13: Dressing of bed | D13: =D10 -> 1 | E13: =+E10 -> 10.00 | F13: =((3.14*(($E$10-0.75)*($E$10-0.75))/4)) -> 67.17 | I13: =PRODUCT(D13:G13) -> 671.67 | J13: 4.00 | K13: =I14*J13 -> 2,686.66
B14: Qty | D14: Total: | H14: Sft | I14: =SUM(I13:I13) -> 671.67 | L14: =+K13/$K$57 -> 2% | N14: =+I14*$J$58 -> 20,821.63 | O14: =+I14*J13*$J$58 -> 83,287
A15: 3 | B15: Crurshed Stone Bedding
B16: Crurshed Bedding 1" Down | D16: =D10 -> 1 | E16: Area= | F16: =+F13 -> 67.17 | G16: 1.00 | I16: =PRODUCT(D16:G16) -> 67.17 | J16: 140.00 | K16: =I17*J16 -> 9,403.32
B17: Qty | D17: Total: | H17: Cft | I17: =SUM(I16:I16) -> 67.17 | L17: =+K16/$K$57 -> 5% | N17: =+I17*$J$58 -> 2,082.16 | O17: =+I17*J16*$J$58 -> 291,503
A18: =+A15+1 -> 4 | B18: PCC Concrete 1:4:8
B19: Base Concrete 1:4:8 | D19: =D13 -> 1 | E19: Area= | F19: =((3.14*(($E$10-1.75)*($E$10-1.75))/4)) -> 53.43 | G19: 0.75 | I19: =PRODUCT(D19:G19) -> 40.07 | J19: 280.00 | K19: =I20*J19 -> 11,220.10
B20: Qty | D20: Total: | H20: Cft | I20: =SUM(I19:I19) -> 40.07 | L20: =+K19/$K$57 -> 6% | N20: =+I20*$J$58 -> 1,242.23 | O20: =+I20*J19*$J$58 -> 347,823
A21: =+A18+1 -> 5 | B21: Pacca Brick Work with 1:3 C/S Mortar
B22: Wall (Circular) | D22: 1 | E22: =3.142*($C$5+$I$5) -> 19.24 | F22: =+I5 -> 1.13 | G22: =+$G$10-$G$16-$G$19-G23-G23 -> 0.75 | I22: =PRODUCT(D22:G22) -> 16.24 | J22: 420.00 | K22: =+I25*J22 -> 48,037.54
B23: Wall (Circular) | D23: =+D19 -> 1 | E23: =3.142*($C$5+$G$5) -> 18.07 | F23: =$G$5 -> 0.75 | G23: =8-G24 -> 5.25 | I23: =PRODUCT(D23:G23) -> 71.14
B24: Wall (Dome) | D24: =D23 -> 1 | E24: =((3.142*($C$5+$G$5))+(3.142*(1.833+$G$5)))/2 -> 13.09 | F24: =$G$5 -> 0.75 | G24: 2.75 | I24: 27.00
B25: Qty | D25: Total: | H25: Cft | I25: =SUM(I22:I24) -> 114.38 | L25: =+K22/$K$57 -> 27% | N25: =+I25*$J$58 -> 3,545.63 | O25: =+I25*J22*$J$58 -> 1,489,164
A26: =+A21+1 -> 6 | B26: Plaster Work with 1:3 C/S Mortar
B27: Wall (Circular) Outer Side | D27: =D24 -> 1 | E27: =3.142*(+$C$5+$I$5+$I$5) -> 22.78 | G27: =+G22 -> 0.75 | I27: =PRODUCT(D27:G27) -> 17.08 | J27: 48.00 | K27: =+I32*J27 -> 12,823.62
B28: Wall (Circular) Outer Side | D28: =+D27 -> 1 | E28: =3.142*(+$C$5+$G$5+$G$5) -> 20.42 | G28: =+G23 -> 5.25 | I28: =PRODUCT(D28:G28) -> 107.22
B29: Wall (Dome) Outer Side | D29: =D27 -> 1 | E29: =((3.142*($C$5+$G$5+$G$5))+(3.142*(1.833+$G$5+$G$5)))/2 -> 15.45 | G29: =+G24 -> 2.75 | I29: =PRODUCT(D29:G29) -> 42.48
B30: Wall (Circular) inner Side | D30: 1 | E30: =3.142*($C$5) -> 15.71 | G30: =+G27+G28-G43 -> 4.51 | I30: =PRODUCT(D30:G30) -> 70.85
B31: Wall (Dome Inner Side | D31: =D30 -> 1 | E31: =((3.142*($C$5))+(3.142*(1.833)))/2 -> 10.73 | G31: =+G29 -> 2.75 | I31: =PRODUCT(D31:G31) -> 29.52
B32: Qty | D32: Total: | H32: Sft | I32: =SUM(I27:I31) -> 267.16 | L32: =+K27/$K$57 -> 7% | N32: =+I32*$J$58 -> 8,281.92 | O32: =+I32*J27*$J$58 -> 397,532
A33: =+A26+1 -> 7 | B33: Bituman Coating
B34: Wall (Circular) Outer Side | D34: =D50 -> 1 | E34: =+E27 -> 22.78 | G34: =+G27 -> 0.75 | I34: =PRODUCT(D34:G34) -> 17.08 | J34: 14.00 | K34: =I39*J34 -> 2,335.01
B35: Wall (Circular) Outer Side | D35: =+D34 -> 1 | E35: =+E28 -> 20.42 | G35: =+G28 -> 5.25 | I35: =PRODUCT(D35:G35) -> 107.22
B36: Wall (Dome) Outer Side | D36: =D34 -> 1 | E36: =+E29 -> 15.45 | G36: =+G29 -> 2.75 | I36: =PRODUCT(D36:G36) -> 42.48
B37: Wall (Circular) inner Side | D37: 0 | E37: =+E30 -> 15.71 | G37: =+G30 -> 4.51 | I37: =PRODUCT(D37:G37) -> 0.00
B38: Wall (Dome Inner Side | D38: =+D37 -> 0 | E38: =+E31 -> 10.73 | G38: =+G31 -> 2.75 | I38: =PRODUCT(D38:G38) -> 0.00
B39: Qty | D39: Total: | H39: Sft | I39: =SUM(I34:I38) -> 166.79 | L39: =+K34/$K$57 -> 1% | N39: =+I39*$J$58 -> 5,170.38 | O39: =+I39*J34*$J$58 -> 72,385
A40: =+A33+1 -> 8 | B40: Concrete 1:2:4
B41: Top Cover Slab | D41: =D24 -> 1 | E41: Area= | F41: =((3.14*(3.83*3.83))/4) -> 11.52 | G41: 0.75 | I41: =PRODUCT(D41:G41) -> 8.64 | J41: 450.00 | K41: =I45*J41 -> 15,952.77
B42: D/d of Manhole Cover | D42: -1 | E42: Area= | F42: =((3.14*(1.83*1.83))/4) -> 2.63 | G42: 0.75 | I42: =PRODUCT(D42:G42) -> -1.97
B43: Beching PCC | D43: =+D41 -> 1 | E43: Area= | F43: =((3.14*(C5*C5))/4) -> 19.63 | G43: =0.33+($K$3+0.16) -> 1.49 | I43: =PRODUCT(D43:G43) -> 29.24
B44: D/d of Pipe | D44: -1 | E44: Area= | F44: =((3.14*(K3*K3))/4)/2 -> 0.39 | G44: =($K$3+0.16) -> 1.16 | I44: =PRODUCT(D44:G44) -> -0.46
B45: Qty | D45: Total: | H45: Cft | I45: =SUM(I41:I44) -> 35.45 | L45: =+K41/$K$57 -> 9% | N45: =+I45*$J$58 -> 1,098.97 | O45: =+I45*J41*$J$58 -> 494,536
A46: =+A40+1 -> 9 | B46: Manhole Cover 22" dia
B47: 22" dia MH Cover | D47: 1 | I47: =PRODUCT(D47:G47) -> 1.00 | J47: 17235.00 | K47: =I48*J47 -> 17,235.00
B48: Qty | D48: Total: | H48: No | I48: =SUM(I47:I47) -> 1.00 | L48: =+K47/$K$57 -> 10% | N48: =+I48*$J$58 -> 31.00 | O48: =+I48*J47*$J$58 -> 534,285
A49: =+A46+1 -> 10 | B49: Malleable Iron Step
B50: Iron Step @1' C/C | D50: 1 | F50: Brick Work Height | G50: =+(G23+G24+G22)-1 -> 7.75 | I50: =ROUND(G50,0) -> 8.00 | J50: 1550.00 | K50: =I51*J50 -> 12,400.00
B51: Qty | D51: Total: | H51: No | I51: =SUM(I50:I50) -> 8.00 | L51: =+K50/$K$57 -> 7% | N51: =+I51*$J$58 -> 248.00 | O51: =+I51*J50*$J$58 -> 384,400
A52: =+A49+1 -> 11 | B52: Backfill
B53: Backfill (Total Excavation) | D53: =+D10 -> 1 | G53: =I11 -> 1300.00 | I53: =PRODUCT(D53:G53) -> 1300.00 | J53: 32.00 | K53: =I55*J53 -> 27,802.84
B54: D/d of Manhole | D54: -1 | E54: Area | F54: =3.14*(($C$5+$G$5+$G$5)*($C$5+$G$5+$G$5))/4 -> 33.17 | G54: =+G10 -> 13.00 | I54: =PRODUCT(D54:G54) -> -431.16
B55: Qty | D55: Total: | H55: Cft | I55: =SUM(I53:I54) -> 868.84 | L55: =+K53/$K$57 -> 16% | N55: =+I55*$J$58 -> 26,934.00 | O55: =+I55*J53*$J$58 -> 861,888
L56: =SUM(L9:L55) -> 100%
I57: Total Cost = | K57: =SUM(K9:K56) -> 175,497
I58: Total of Manhole= | J58: =+Summary!M6 -> 31 | K58: No's
I59: Grand Total Cost= | K59: =+K57*J58 -> 5,440,403 | N59: =SUM(N9:N58) -> 109,755.92 | O59: =SUM(O9:O58) -> 5,440,403

Sheet M.H 5'dia (Type-VI
D1: =+'M.H 5''dia (Type-V'!D1 -> PROJECT NAME | J1: Manhole #
E2: CIVIL INFRASTRUCTURE WORKS | J2: Road Name :
F3: RATE ANALYSIS | J3: Sewer Line (Ø) | K3: 1.17 ft
A4: Manhole Data;
B5: Manhole Inner dia(Ø) | C5: 5.00 ft | D5: Depth of Manhole, | E5: 17.00 ft | F5: Wall Thick-I | G5: 0.75 ft | H5: Wall Thick-II | I5: =13.5/12 -> 1.125 ft | J5: MH Type-VI | K5: Assumed Quantity, | L5: 1
A7: Sr.# | B7: Item of Works | D7: ABSTRACT OF QUANTIES | J7: RATE ANALYSIS
B8: Decription of items | D8: No. | E8: Length (ft) | F8: width (ft) | G8: Height (ft) | H8: Unit | I8: Qty | J8: Unit Rate | K8: Amount | N8: Total Qty | O8: Total Rs.
A9: 1 | B9: Excavation
B10: Excavation | D10: =+L5 -> 1 | E10: =+C5+4.25+0.75 -> 10.00 | F10: =+E10 -> 10.00 | G10: =+E5 -> 17.00 | I10: =PRODUCT(D10:G10) -> 1700.00 | J10: 12.00 | K10: =I11*J10 -> 20,400.00
B11: Qty | D11: Total: | H11: Cft | I11: =SUM(I10:I10) -> 1700.00 | L11: =+K10/$K$57 -> 8% | N11: =+I11*$J$58 -> 39,100.00 | O11: =+I11*J10*$J$58 -> 469,200
A12: =A9+1 -> 2 | B12: Dressing of bed
B13: Dressing of bed | D13: =D10 -> 1 | E13: =+E10 -> 10.00 | F13: =((3.14*(($E$10-0.75)*($E$10-0.75))/4)) -> 67.17 | I13: =PRODUCT(D13:G13) -> 671.67 | J13: 4.00 | K13: =I14*J13 -> 2,686.66
B14: Qty | D14: Total: | H14: Sft | I14: =SUM(I13:I13) -> 671.67 | L14: =+K13/$K$57 -> 1% | N14: =+I14*$J$58 -> 15,448.31 | O14: =+I14*J13*$J$58 -> 61,793
A15: 3 | B15: Crurshed Stone Bedding
B16: Crurshed Bedding 1" Down | D16: =D10 -> 1 | E16: Area= | F16: =+F13 -> 67.17 | G16: 1.00 | I16: =PRODUCT(D16:G16) -> 67.17 | J16: 140.00 | K16: =I17*J16 -> 9,403.32
B17: Qty | D17: Total: | H17: Cft | I17: =SUM(I16:I16) -> 67.17 | L17: =+K16/$K$57 -> 4% | N17: =+I17*$J$58 -> 1,544.83 | O17: =+I17*J16*$J$58 -> 216,276
A18: =+A15+1 -> 4 | B18: PCC Concrete 1:4:8
B19: Base Concrete 1:4:8 | D19: =D13 -> 1 | E19: Area= | F19: =((3.14*(($E$10-1.75)*($E$10-1.75))/4)) -> 53.43 | G19: 0.75 | I19: =PRODUCT(D19:G19) -> 40.07 | J19: 280.00 | K19: =I20*J19 -> 11,220.10
B20: Qty | D20: Total: | H20: Cft | I20: =SUM(I19:I19) -> 40.07 | L20: =+K19/$K$57 -> 5% | N20: =+I20*$J$58 -> 921.65 | O20: =+I20*J19*$J$58 -> 258,062
A21: =+A18+1 -> 5 | B21: Pacca Brick Work with 1:3 C/S Mortar
B22: Wall (Circular) | D22: 1 | E22: =3.142*($C$5+$I$5) -> 19.24 | F22: =+I5 -> 1.13 | G22: =+$G$10-$G$16-$G$19-G23-G23 -> 4.75 | I22: =PRODUCT(D22:G22) -> 102.84 | J22: 420.00 | K22: =+I25*J22 -> 84,410.11
B23: Wall (Circular) | D23: =+D19 -> 1 | E23: =3.142*($C$5+$G$5) -> 18.07 | F23: =$G$5 -> 0.75 | G23: =8-G24 -> 5.25 | I23: =PRODUCT(D23:G23) -> 71.14
B24: Wall (Dome) | D24: =D23 -> 1 | E24: =((3.142*($C$5+$G$5))+(3.142*(1.833+$G$5)))/2 -> 13.09 | F24: =$G$5 -> 0.75 | G24: 2.75 | I24: 27.00
B25: Qty | D25: Total: | H25: Cft | I25: =SUM(I22:I24) -> 200.98 | L25: =+K22/$K$57 -> 35% | N25: =+I25*$J$58 -> 4,622.46 | O25: =+I25*J22*$J$58 -> 1,941,433
A26: =+A21+1 -> 6 | B26: Plaster Work with 1:3 C/S Mortar
B27: Wall (Circular) Outer Side | D27: =D24 -> 1 | E27: =3.142*(+$C$5+$I$5+$I$5) -> 22.78 | G27: =+G22 -> 4.75 | I27: =PRODUCT(D27:G27) -> 108.20 | J27: 48.00 | K27: =+I32*J27 -> 20,087.92
B28: Wall (Circular) Outer Side | D28: =+D27 -> 1 | E28: =3.142*(+$C$5+$G$5+$G$5) -> 20.42 | G28: =+G23 -> 5.25 | I28: =PRODUCT(D28:G28) -> 107.22
B29: Wall (Dome) Outer Side | D29: =D27 -> 1 | E29: =((3.142*($C$5+$G$5+$G$5))+(3.142*(1.833+$G$5+$G$5)))/2 -> 15.45 | G29: =+G24 -> 2.75 | I29: =PRODUCT(D29:G29) -> 42.48
B30: Wall (Circular) inner Side | D30: 1 | E30: =3.142*($C$5) -> 15.71 | G30: =+G27+G28-G43 -> 8.34 | I30: =PRODUCT(D30:G30) -> 131.07
B31: Wall (Dome Inner Side | D31: =D30 -> 1 | E31: =((3.142*($C$5))+(3.142*(1.833)))/2 -> 10.73 | G31: =+G29 -> 2.75 | I31: =PRODUCT(D31:G31) -> 29.52
B32: Qty | D32: Total: | H32: Sft | I32: =SUM(I27:I31) -> 418.50 | L32: =+K27/$K$57 -> 8% | N32: =+I32*$J$58 -> 9,625.46 | O32: =+I32*J27*$J$58 -> 462,022
A33: =+A26+1 -> 7 | B33: Bituman Coating
B34: Wall (Circular) Outer Side | D34: =D50 -> 1 | E34: =+E27 -> 22.78 | G34: =+G27 -> 4.75 | I34: =PRODUCT(D34:G34) -> 108.20 | J34: 14.00 | K34: =I39*J34 -> 3,610.66
B35: Wall (Circular) Outer Side | D35: =+D34 -> 1 | E35: =+E28 -> 20.42 | G35: =+G28 -> 5.25 | I35: =PRODUCT(D35:G35) -> 107.22
B36: Wall (Dome) Outer Side | D36: =D34 -> 1 | E36: =+E29 -> 15.45 | G36: =+G29 -> 2.75 | I36: =PRODUCT(D36:G36) -> 42.48
B37: Wall (Circular) inner Side | D37: 0 | E37: =+E30 -> 15.71 | G37: =+G30 -> 8.34 | I37: =PRODUCT(D37:G37) -> 0.00
B38: Wall (Dome Inner Side | D38: =+D37 -> 0 | E38: =+E31 -> 10.73 | G38: =+G31 -> 2.75 | I38: =PRODUCT(D38:G38) -> 0.00
B39: Qty | D39: Total: | H39: Sft | I39: =SUM(I34:I38) -> 257.90 | L39: =+K34/$K$57 -> 1% | N39: =+I39*$J$58 -> 5,931.80 | O39: =+I39*J34*$J$58 -> 83,045
A40: =+A33+1 -> 8 | B40: Concrete 1:2:4
B41: Top Cover Slab | D41: =D24 -> 1 | E41: Area= | F41: =((3.14*(3.83*3.83))/4) -> 11.52 | G41: 0.75 | I41: =PRODUCT(D41:G41) -> 8.64 | J41: 450.00 | K41: =I45*J41 -> 17,310.59
B42: D/d of Manhole Cover | D42: -1 | E42: Area= | F42: =((3.14*(1.83*1.83))/4) -> 2.63 | G42: 0.75 | I42: =PRODUCT(D42:G42) -> -1.97
B43: Beching PCC | D43: =+D41 -> 1 | E43: Area= | F43: =((3.14*(C5*C5))/4) -> 19.63 | G43: =0.33+($K$3+0.16) -> 1.66 | I43: =PRODUCT(D43:G43) -> 32.51
B44: D/d of Pipe | D44: -1 | E44: Area= | F44: =((3.14*(K3*K3))/4)/2 -> 0.53 | G44: =($K$3+0.16) -> 1.33 | I44: =PRODUCT(D44:G44) -> -0.71
B45: Qty | D45: Total: | H45: Cft | I45: =SUM(I41:I44) -> 38.47 | L45: =+K41/$K$57 -> 7% | N45: =+I45*$J$58 -> 884.76 | O45: =+I45*J41*$J$58 -> 398,144
A46: =+A40+1 -> 9 | B46: Manhole Cover 22" dia
B47: 22" dia MH Cover | D47: 1 | I47: =PRODUCT(D47:G47) -> 1.00 | J47: 17235.00 | K47: =I48*J47 -> 17,235.00
B48: Qty | D48: Total: | H48: No | I48: =SUM(I47:I47) -> 1.00 | L48: =+K47/$K$57 -> 7% | N48: =+I48*$J$58 -> 23.00 | O48: =+I48*J47*$J$58 -> 396,405
A49: =+A46+1 -> 10 | B49: Malleable Iron Step
B50: Iron Step @1' C/C | D50: 1 | F50: Brick Work Height | G50: =+(+G22+G23+G24)-1 -> 11.75 | I50: =ROUND(G50,0) -> 12.00 | J50: 1550.00 | K50: =I51*J50 -> 18,600.00
B51: Qty | D51: Total: | H51: No | I51: =SUM(I50:I50) -> 12.00 | L51: =+K50/$K$57 -> 8% | N51: =+I51*$J$58 -> 276.00 | O51: =+I51*J50*$J$58 -> 427,800
A52: =+A49+1 -> 11 | B52: Backfill
B53: Backfill (Total Excavation) | D53: =+D10 -> 1 | G53: =I11 -> 1700.00 | I53: =PRODUCT(D53:G53) -> 1700.00 | J53: 32.00 | K53: =I55*J53 -> 36,357.56
B54: D/d of Manhole | D54: -1 | E54: Area | F54: =3.14*(($C$5+$G$5+$G$5)*($C$5+$G$5+$G$5))/4 -> 33.17 | G54: =+G10 -> 17.00 | I54: =PRODUCT(D54:G54) -> -563.83
B55: Qty | D55: Total: | H55: Cft | I55: =SUM(I53:I54) -> 1136.17 | L55: =+K53/$K$57 -> 15% | N55: =+I55*$J$58 -> 26,132.00 | O55: =+I55*J53*$J$58 -> 836,224
L56: =SUM(L10:L55) -> 100%
I57: Total Cost = | K57: =SUM(K9:K56) -> 241,322
I58: Total of Manhole= | J58: =+Summary!O6 -> 23 | K58: No's
I59: Grand Total Cost= | K59: =+K57*J58 -> 5,550,404 | N59: =SUM(N9:N58) -> 104,510.27 | O59: =SUM(O9:O58) -> 5,550,404

Sheet M.H 6.5'dia (Type-VII
D1: =+'M.H 5''dia (Type-VI'!D1 -> PROJECT NAME | J1: Manhole #
E2: CIVIL INFRASTRUCTURE WORKS | J2: Road Name :
F3: RATE ANALYSIS | J3: Sewer Line (Ø) | K3: 1.33 ft
A4: Manhole Data;
B5: Manhole Inner dia(Ø) | C5: 6.50 ft | D5: Depth of Manhole, | E5: 18.00 ft | F5: Wall Thick-I | G5: 0.75 ft | H5: Wall Thick-II | I5: =13.5/12 -> 1.125 ft | J5: MH Type-VII | K5: Assumed Quantity, | L5: 1
A7: Sr.# | B7: Item of Works | D7: ABSTRACT OF QUANTIES | J7: RATE ANALYSIS
B8: Decription of items | D8: No. | E8: Length (ft) | F8: width (ft) | G8: Height (ft) | H8: Unit | I8: Qty | J8: Unit Rate | K8: Amount | N8: Total Qty | O8: Total Rs.
A9: 1 | B9: Excavation
B10: Excavation | D10: =+L5 -> 1 | E10: =+C5+4.25+0.75 -> 11.50 | F10: =+E10 -> 11.50 | G10: =+E5 -> 18.00 | I10: =PRODUCT(D10:G10) -> 2380.50 | J10: 12.00 | K10: =I11*J10 -> 28,566.00
B11: Qty | D11: Total: | H11: Cft | I11: =SUM(I10:I10) -> 2380.50 | L11: =+K10/$K$57 -> 9% | N11: =+I11*$J$58 -> 4,761.00 | O11: =+I11*J10*$J$58 -> 57,132
A12: =A9+1 -> 2 | B12: Dressing of bed
B13: Dressing of bed | D13: =D10 -> 1 | E13: =+E10 -> 11.50 | F13: =((3.14*(($E$10-0.75)*($E$10-0.75))/4)) -> 90.72 | I13: =PRODUCT(D13:G13) -> 1043.24 | J13: 4.00 | K13: =I14*J13 -> 4,172.96
B14: Qty | D14: Total: | H14: Sft | I14: =SUM(I13:I13) -> 1043.24 | L14: =+K13/$K$57 -> 1% | N14: =+I14*$J$58 -> 2,086.48 | O14: =+I14*J13*$J$58 -> 8,346
A15: 3 | B15: Crurshed Stone Bedding
B16: Crurshed Bedding 1" Down | D16: =D10 -> 1 | E16: Area= | F16: =+F13 -> 90.72 | G16: 1.00 | I16: =PRODUCT(D16:G16) -> 90.72 | J16: 140.00 | K16: =I17*J16 -> 12,700.32
B17: Qty | D17: Total: | H17: Cft | I17: =SUM(I16:I16) -> 90.72 | L17: =+K16/$K$57 -> 4% | N17: =+I17*$J$58 -> 181.43 | O17: =+I17*J16*$J$58 -> 25,401
A18: =+A15+1 -> 4 | B18: PCC Concrete 1:4:8
B19: Base Concrete 1:4:8 | D19: =D13 -> 1 | E19: Area= | F19: =((3.14*(($E$10-1.75)*($E$10-1.75))/4)) -> 74.62 | G19: 0.75 | I19: =PRODUCT(D19:G19) -> 55.97 | J19: 280.00 | K19: =I20*J19 -> 15,671.05
B20: Qty | D20: Total: | H20: Cft | I20: =SUM(I19:I19) -> 55.97 | L20: =+K19/$K$57 -> 5% | N20: =+I20*$J$58 -> 111.94 | O20: =+I20*J19*$J$58 -> 31,342
A21: =+A18+1 -> 5 | B21: Pacca Brick Work with 1:3 C/S Mortar
B22: Wall (Circular) | D22: 1 | E22: =3.142*($C$5+$I$5) -> 23.96 | F22: =+I5 -> 1.13 | G22: =+$G$10-$G$16-$G$19-G23-G23 -> 5.75 | I22: =PRODUCT(D22:G22) -> 154.98 | J22: 420.00 | K22: =+I25*J22 -> 116,143.33
B23: Wall (Circular) | D23: =+D19 -> 1 | E23: =3.142*($C$5+$G$5) -> 22.78 | F23: =$G$5 -> 0.75 | G23: =8-G24 -> 5.25 | I23: =PRODUCT(D23:G23) -> 89.69
B24: Wall (Dome) | D24: =D23 -> 1 | E24: =((3.142*($C$5+$G$5))+(3.142*(1.833+$G$5)))/2 -> 15.45 | F24: =$G$5 -> 0.75 | G24: 2.75 | I24: 31.86
B25: Qty | D25: Total: | H25: Cft | I25: =SUM(I22:I24) -> 276.53 | L25: =+K22/$K$57 -> 36% | N25: =+I25*$J$58 -> 553.06 | O25: =+I25*J22*$J$58 -> 232,287
A26: =+A21+1 -> 6 | B26: Plaster Work with 1:3 C/S Mortar
B27: Wall (Circular) Outer Side | D27: =D24 -> 1 | E27: =3.142*(+$C$5+$I$5+$I$5) -> 27.49 | G27: =+G22 -> 5.75 | I27: =PRODUCT(D27:G27) -> 158.08 | J27: 48.00 | K27: =+I32*J27 -> 26,996.30
B28: Wall (Circular) Outer Side | D28: =+D27 -> 1 | E28: =3.142*(+$C$5+$G$5+$G$5) -> 25.14 | G28: =+G23 -> 5.25 | I28: =PRODUCT(D28:G28) -> 131.96
B29: Wall (Dome) Outer Side | D29: =D27 -> 1 | E29: =((3.142*($C$5+$G$5+$G$5))+(3.142*(1.833+$G$5+$G$5)))/2 -> 17.80 | G29: =+G24 -> 2.75 | I29: =PRODUCT(D29:G29) -> 48.96
B30: Wall (Circular) inner Side | D30: 1 | E30: =3.142*($C$5) -> 20.42 | G30: =+G27+G28-G43 -> 9.18 | I30: =PRODUCT(D30:G30) -> 187.42
B31: Wall (Dome Inner Side | D31: =D30 -> 1 | E31: =((3.142*($C$5))+(3.142*(1.833)))/2 -> 13.09 | G31: =+G29 -> 2.75 | I31: =PRODUCT(D31:G31) -> 36.00
B32: Qty | D32: Total: | H32: Sft | I32: =SUM(I27:I31) -> 562.42 | L32: =+K27/$K$57 -> 8% | N32: =+I32*$J$58 -> 1,124.85 | O32: =+I32*J27*$J$58 -> 53,993
A33: =+A26+1 -> 7 | B33: Bituman Coating
B34: Wall (Circular) Outer Side | D34: =D50 -> 1 | E34: =+E27 -> 27.49 | G34: =+G27 -> 5.75 | I34: =PRODUCT(D34:G34) -> 158.08 | J34: 14.00 | K34: =I39*J34 -> 4,746.10
B35: Wall (Circular) Outer Side | D35: =+D34 -> 1 | E35: =+E28 -> 25.14 | G35: =+G28 -> 5.25 | I35: =PRODUCT(D35:G35) -> 131.96
B36: Wall (Dome) Outer Side | D36: =D34 -> 1 | E36: =+E29 -> 17.80 | G36: =+G29 -> 2.75 | I36: =PRODUCT(D36:G36) -> 48.96
B37: Wall (Circular) inner Side | D37: 0 | E37: =+E30 -> 20.42 | G37: =+G30 -> 9.18 | I37: =PRODUCT(D37:G37) -> 0.00
B38: Wall (Dome Inner Side | D38: =+D37 -> 0 | E38: =+E31 -> 13.09 | G38: =+G31 -> 2.75 | I38: =PRODUCT(D38:G38) -> 0.00
B39: Qty | D39: Total: | H39: Sft | I39: =SUM(I34:I38) -> 339.01 | L39: =+K34/$K$57 -> 1% | N39: =+I39*$J$58 -> 678.01 | O39: =+I39*J34*$J$58 -> 9,492
A40: =+A33+1 -> 8 | B40: Concrete 1:2:4
B41: Top Cover Slab | D41: =D24 -> 1 | E41: Area= | F41: =((3.14*(3.83*3.83))/4) -> 11.52 | G41: 0.75 | I41: =PRODUCT(D41:G41) -> 8.64 | J41: 450.00 | K41: =I45*J41 -> 29,743.09
B42: D/d of Manhole Cover | D42: -1 | E42: Area= | F42: =((3.14*(1.83*1.83))/4) -> 2.63 | G42: 0.75 | I42: =PRODUCT(D42:G42) -> -1.97
B43: Beching PCC | D43: =+D41 -> 1 | E43: Area= | F43: =((3.14*(C5*C5))/4) -> 33.17 | G43: =0.33+($K$3+0.16) -> 1.82 | I43: =PRODUCT(D43:G43) -> 60.47
B44: D/d of Pipe | D44: -1 | E44: Area= | F44: =((3.14*(K3*K3))/4)/2 -> 0.70 | G44: =($K$3+0.16) -> 1.49 | I44: =PRODUCT(D44:G44) -> -1.04
B45: Qty | D45: Total: | H45: Cft | I45: =SUM(I41:I44) -> 66.10 | L45: =+K41/$K$57 -> 9% | N45: =+I45*$J$58 -> 132.19 | O45: =+I45*J41*$J$58 -> 59,486
A46: =+A40+1 -> 9 | B46: Manhole Cover 22" dia
B47: 22" dia MH Cover | D47: 1 | I47: =PRODUCT(D47:G47) -> 1.00 | J47: 17325.00 | K47: =I48*J47 -> 17,325.00
B48: Qty | D48: Total: | H48: No | I48: =SUM(I47:I47) -> 1.00 | L48: =+K47/$K$57 -> 5% | N48: =+I48*$J$58 -> 2.00 | O48: =+I48*J47*$J$58 -> 34,650
A49: =+A46+1 -> 10 | B49: Malleable Iron Step
B50: Iron Step @1' C/C | D50: 1 | F50: Brick Work Height | G50: =+(+G22+G23+G24)-1 -> 12.75 | I50: =ROUND(G50,0) -> 13.00 | J50: 1550.00 | K50: =I51*J50 -> 20,150.00
B51: Qty | D51: Total: | H51: No | I51: =SUM(I50:I50) -> 13.00 | L51: =+K50/$K$57 -> 6% | N51: =+I51*$J$58 -> 26.00 | O51: =+I51*J50*$J$58 -> 40,300
A52: =+A49+1 -> 11 | B52: Backfill
B53: Backfill (Total Excavation) | D53: =+D10 -> 1 | G53: =I11 -> 2380.50 | I53: =PRODUCT(D53:G53) -> 2380.50 | J53: 32.00 | K53: =I55*J53 -> 47,237.76
B54: D/d of Manhole | D54: -1 | E54: Area | F54: =3.14*(($C$5+$G$5+$G$5)*($C$5+$G$5+$G$5))/4 -> 50.24 | G54: =+G10 -> 18.00 | I54: =PRODUCT(D54:G54) -> -904.32
B55: Qty | D55: Total: | H55: Cft | I55: =SUM(I53:I54) -> 1476.18 | L55: =+K53/$K$57 -> 15% | N55: =+I55*$J$58 -> 2,952.36 | O55: =+I55*J53*$J$58 -> 94,476
L56: =SUM(L9:L55) -> 100%
I57: Total Cost = | K57: =SUM(K9:K56) -> 323,452
I58: Total of Manhole= | J58: =+Summary!Q6 -> 2 | K58: No's
I59: Grand Total Cost= | K59: =+K57*J58 -> 646,904 | N59: =SUM(N9:N58) -> 12,609.33 | O59: =SUM(O9:O58) -> 646,904

Sheet M.H 2.5'dia (H,Conc)
D1: =+'M.H 4''dia (Type-IV'!D1 -> PROJECT NAME | J1: Manhole #
E2: CIVIL INFRASTRUCTURE WORKS | J2: Road Name :
F3: RATE ANALYSIS | J3: Sewer Line (Ø) | K3: 0.50 ft
A4: Manhole Data;
B5: Manhole Inner dia(Ø) | C5: 2.50 ft | D5: Depth of Manhole, | E5: 5.00 ft | F5: Wall Thick-I | G5: 0.75 ft | H5: Wall Thick-II | I5: =9/12 -> 0.750 ft | J5: MH Type-HC | K5: Assumed Quantity, | L5: 1
A7: Sr.# | B7: Item of Works | D7: ABSTRACT OF QUANTIES | J7: RATE ANALYSIS
B8: Decription of items | D8: No. | E8: Length (ft) | F8: width (ft) | G8: Height (ft) | H8: Unit | I8: Qty | J8: Unit Rate | K8: Amount | N8: Total Qty | O8: Total Rs.
A9: 1 | B9: Excavation
B10: Excavation | D10: =+L5 -> 1 | E10: =+C5+1.75+0.75 -> 5.00 | F10: =+E10 -> 5.00 | G10: =+E5 -> 5.00 | I10: =PRODUCT(D10:G10) -> 125.00 | J10: 12.00 | K10: =I11*J10 -> 1,500.00
B11: Qty | D11: Total: | H11: Cft | I11: =SUM(I10:I10) -> 125.00 | L11: =+K10/$K$55 -> 3% | N11: =+I11*$J$56 -> 30,125.00 | O11: =+I11*J10*$J$56 -> 361,500
A12: =A9+1 -> 2 | B12: Dressing of bed
B13: Dressing of bed | D13: =D10 -> 1 | E13: =+E10 -> 5.00 | F13: =((3.14*(($E$10-0.75)*($E$10-0.75))/4)) -> 14.18 | I13: =PRODUCT(D13:G13) -> 70.90 | J13: 4.00 | K13: =I14*J13 -> 283.58
B14: Qty | D14: Total: | H14: Sft | I14: =SUM(I13:I13) -> 70.90 | L14: =+K13/$K$55 -> 1% | N14: =+I14*$J$56 -> 17,085.77 | O14: =+I14*J13*$J$56 -> 68,343
A15: 3 | B15: Crurshed Stone Bedding
B16: Crurshed Bedding 1" Down | D16: =D10 -> 1 | E16: Area= | F16: =+F13 -> 14.18 | G16: 0.33 | I16: =PRODUCT(D16:G16) -> 4.68 | J16: 140.00 | K16: =I17*J16 -> 655.07
B17: Qty | D17: Total: | H17: Cft | I17: =SUM(I16:I16) -> 4.68 | L17: =+K16/$K$55 -> 1% | N17: =+I17*$J$56 -> 1,127.66 | O17: =+I17*J16*$J$56 -> 157,873
A18: =+A15+1 -> 4 | B18: PCC Concrete 1:4:8
B19: Base Concrete 1:4:8 | D19: =D13 -> 1 | E19: Area= | F19: =((3.14*(($E$10-1.75)*($E$10-1.75))/4)) -> 8.29 | G19: 0.33 | I19: =PRODUCT(D19:G19) -> 2.74 | J19: 280.00 | K19: =I20*J19 -> 766.14
B20: Qty | D20: Total: | H20: Cft | I20: =SUM(I19:I19) -> 2.74 | L20: =+K19/$K$55 -> 2% | N20: =+I20*$J$56 -> 659.43 | O20: =+I20*J19*$J$56 -> 184,640
A21: =+A18+1 -> 5 | B21: Pacca Brick Work with 1:3 C/S Mortar
B22: Wall (Circular) | D22: 0 | E22: =3.142*($C$5+$I$5) -> 10.21 | F22: =+I5 -> 0.75 | I22: =PRODUCT(D22:G22) -> 0.00 | J22: 420.00 | K22: =+I25*J22 -> 13,052.44
B23: Wall (Circular) | D23: =+D19 -> 1 | E23: =3.142*($C$5+$I$5) -> 10.21 | F23: =$G$5 -> 0.75 | G23: =+G10-G16-G19-G24 -> 1.59 | I23: =PRODUCT(D23:G23) -> 12.18
B24: Wall (Dome) | D24: =D23 -> 1 | E24: =((3.142*($C$5+$G$5))+(3.142*(1.833+$G$5)))/2 -> 9.16 | F24: =$G$5 -> 0.75 | G24: 2.75 | I24: 18.90
B25: Qty | D25: Total: | H25: Cft | I25: =SUM(I22:I24) -> 31.08 | L25: =+K22/$K$55 -> 28% | N25: =+I25*$J$56 -> 7,489.61 | O25: =+I25*J22*$J$56 -> 3,145,637
A26: =+A21+1 -> 6 | B26: Plaster Work with 1:3 C/S Mortar
B27: Wall (Circular) Outer Side | D27: =D24 -> 1 | E27: =3.142*(+$C$5+$G$5+$G$5) -> 12.57 | G27: =+G23 -> 1.59 | I27: =PRODUCT(D27:G27) -> 19.98 | J27: 48.00 | K27: =+I31*J27 -> 4,648.64
B28: Wall (Dome) Outer Side | D28: =D27 -> 1 | E28: =((3.142*($C$5+$G$5+$G$5))+(3.142*(1.833+$G$5+$G$5)))/2 -> 11.52 | G28: =+G24 -> 2.75 | I28: =PRODUCT(D28:G28) -> 31.68
B29: Wall (Circular) inner Side | D29: 1 | E29: =3.142*(4) -> 12.57 | G29: =+G27 -> 1.59 | I29: =PRODUCT(D29:G29) -> 19.98
B30: Wall (Dome Inner Side | D30: 1 | E30: =((3.142*(4))+(3.142*(1.833)))/2 -> 9.16 | G30: =+G28 -> 2.75 | I30: =PRODUCT(D30:G30) -> 25.20
B31: Qty | D31: Total: | H31: Sft | I31: =SUM(I27:I30) -> 96.85 | L31: =+K27/$K$55 -> 10% | N31: =+I31*$J$56 -> 23,340.04 | O31: =+I31*J27*$J$56 -> 1,120,322
A32: =+A26+1 -> 7 | B32: Bituman Coating (2 Coats)
B33: Wall (Circular) Outer Side | D33: 2 | E33: =+E27 -> 12.57 | G33: =+G27 -> 1.59 | I33: =PRODUCT(D33:G33) -> 39.97 | J33: 14.00 | K33: =I35*J33 -> 1,446.58
B34: Wall (Dome) Outer Side | D34: 2 | E34: =+E28 -> 11.52 | G34: =+G28 -> 2.75 | I34: =PRODUCT(D34:G34) -> 63.36
B35: Qty | D35: Total: | H35: Sft | I35: =SUM(I33:I34) -> 103.33 | L35: =+K33/$K$55 -> 3% | N35: =+I35*$J$56 -> 24,901.81 | O35: =+I35*J33*$J$56 -> 348,625
A36: =+A32+1 -> 8 | B36: Concrete 1:2:4
B37: Top Cover Slab | D37: =D24 -> 1 | E37: Area= | F37: =((3.14*(3.83*3.83))/4) -> 11.52 | G37: 0.75 | I37: =PRODUCT(D37:G37) -> 8.64 | J37: 450.00 | K37: =I41*J37 -> 4,982.59
B38: D/d of Manhole Cover | D38: -1 | E38: Area= | F38: =((3.14*(1.83*1.83))/4) -> 2.63 | G38: 0.75 | I38: =PRODUCT(D38:G38) -> -1.97
B39: Beching PCC | D39: =+D37 -> 1 | E39: Area= | F39: =((3.14*(C5*C5))/4) -> 4.91 | G39: =0.33+($K$3+0.08) -> 0.91 | I39: =PRODUCT(D39:G39) -> 4.46
B40: D/d of Pipe 6" dia | D40: -1 | E40: Area= | F40: =((3.14*(K3*K3))/4)/2 -> 0.10 | G40: =($K$3+0.08) -> 0.58 | I40: =PRODUCT(D40:G40) -> -0.06
B41: Qty | D41: Total: | H41: Cft | I41: =SUM(I37:I40) -> 11.07 | L41: =+K37/$K$55 -> 11% | N41: =+I41*$J$56 -> 2,668.45 | O41: =+I41*J37*$J$56 -> 1,200,804
A42: =+A36+1 -> 9 | B42: Manhole Cover 22" dia
B43: 22" dia MH Cover | D43: 1 | I43: =PRODUCT(D43:G43) -> 1.00 | J43: =5050+12185 -> 17235.00 | K43: =I44*J43 -> 17,235.00
B44: Qty | D44: Total: | H44: No | I44: =SUM(I43:I43) -> 1.00 | L44: =+K43/$K$55 -> 37% | N44: =+I44*$J$56 -> 241.00 | O44: =+I44*J43*$J$56 -> 4,153,635
A45: =+A42+1 -> 10 | B45: Malleable Iron Step
B46: Iron Step @1' C/C | D46: 0 | F46: Brick Work Height | G46: =+(G23+G24)-1 -> 3.34 | I46: =ROUND(G46*D46,0) -> 0.00 | J46: 1550.00 | K46: =I47*J46 -> 0
B47: Qty | D47: Total: | H47: No | I47: =SUM(I46:I46) -> 0.00 | L47: =+K46/$K$55 -> 0% | N47: =+I47*$J$56 -> 0 | O47: =+I47*J46*$J$56 -> 0
A48: =+A45+1 -> 11 | B48: Backfill
B49: Backfill (Total Excavation) | D49: =+D10 -> 1 | G49: =I11 -> 125.00 | I49: =PRODUCT(D49:G49) -> 125.00 | J49: 32.00 | K49: =I51*J49 -> 1,990.40
B50: D/d of Manhole | D50: -1 | E50: Area | F50: =3.14*(($C$5+$G$5+$G$5)*($C$5+$G$5+$G$5))/4 -> 12.56 | G50: =+G10 -> 5.00 | I50: =PRODUCT(D50:G50) -> -62.80
B51: Qty | D51: Total: | H51: Cft | I51: =SUM(I49:I50) -> 62.20 | L51: =+K49/$K$55 -> 4% | N51: =+I51*$J$56 -> 14,990.20 | O51: =+I51*J49*$J$56 -> 479,686
L52: =SUM(L10:L51) -> 100%
I53: Cost for 10 Rft
I54: Overhead 10%
I55: Total Cost = | K55: =SUM(K9:K54) -> 46,560
I56: Total of Manhole= | J56: =+Summary!S6 -> 241 | K56: No's
I57: Grand Total Cost= | K57: =+K55*J56 -> 11,221,066 | N57: =SUM(N9:N56) -> 122,628.98 | O57: =SUM(O9:O56) -> 11,221,066

Sheet M.H 4'dia (Type-II (hidden)
A1: ETIHAD TOWN PHASE-II, LAHORE
A2: CIVIL INFRASTRUCTURE WORKS
A3: RATE ANALYSIS
B4: Manhole 4' i/d upto Height= | D4: 6 | E4: Ft | G4: Type-II | J4: Assumed Quantity= | K4: 1.00 | L4: No
A6: Sr.# | B6: Item of Works | D6: ABSTRACT OF QUANTIES | J6: RATE ANALYSIS
B7: Decription of items | D7: No. | E7: Length (ft) | F7: width (ft) | G7: Height (ft) | H7: Unit | I7: Qty | J7: Labour Rate | K7: Amount | N7: Total Qty | O7: Total Rs.
A8: 1 | B8: Excavation
B9: Excavation | D9: =+K4 -> 1 | E9: 9.00 | F9: 9.00 | G9: =+D4 -> 6.00 | I9: =PRODUCT(D9:G9) -> 486.00 | J9: 8.00 | K9: =I10*J9 -> 3,888.00
B10: Qty | D10: Total: | H10: Cft | I10: =SUM(I9:I9) -> 486.00 | N10: =+I10*$J$57 -> 126,360.00 | O10: =+I10*J9*$J$57 -> 1,010,880
A11: =A8+1 -> 2 | B11: Dressing of bed
B12: Dressing of bed | D12: =D9 -> 1 | E12: =+E9 -> 9.00 | F12: =((3.14*(8.25*8.25))/4) -> 53.43 | I12: =PRODUCT(D12:G12) -> 480.86 | J12: 3.00 | K12: =I13*J12 -> 1,442.58
B13: Qty | D13: Total: | H13: Sft | I13: =SUM(I12:I12) -> 480.86 | N13: =+I13*$J$57 -> 125,024.01 | O13: =+I13*J12*$J$57 -> 375,072
A14: 3 | B14: Crurshed Stone Bedding
B15: Crurshed Bedding 1" Down | D15: =D9 -> 1 | E15: Area= | F15: =((3.14*(8.25*8.25))/4) -> 53.43 | G15: 0.50 | I15: =PRODUCT(D15:G15) -> 26.71 | J15: 55.00 | K15: =I16*J15 -> 1,469.30
B16: Qty | D16: Total: | H16: Cft | I16: =SUM(I15:I15) -> 26.71 | N16: =+I16*$J$57 -> 6,945.78 | O16: =+I16*J15*$J$57 -> 382,018
A17: =+A14+1 -> 4 | B17: PCC Concrete 1:3:6
B18: Base Concrete 1:3:6 | D18: =D12 -> 1 | E18: Area= | F18: =((3.14*(7.25*7.25))/4) -> 41.26 | G18: 0.75 | I18: =PRODUCT(D18:G18) -> 30.95 | J18: 260.00 | K18: =I19*J18 -> 8,046.00
B19: Qty | D19: Total: | H19: Cft | I19: =SUM(I18:I18) -> 30.95 | N19: =+I19*$J$57 -> 8,046.00 | O19: =+I19*J18*$J$57 -> 2,091,961
A20: =+A17+1 -> 5 | B20: Pacca Brick Work with 1:3 C/S Mortar
B21: Wall (Circular) | D21: 0 | E21: =3.142*(4+1.125) -> 16.10 | F21: 1.23 | I21: =PRODUCT(D21:G21) -> 0.00 | J21: 320.00 | K21: =+I24*J21 -> 14,767.05
B22: Wall (Circular) | D22: =+D18 -> 1 | E22: =3.142*(4+0.75) -> 14.92 | F22: 0.75 | G22: =+G9-G15-G18-G23 -> 2.00 | I22: =PRODUCT(D22:G22) -> 22.39
B23: Wall (Dome) | D23: =D22 -> 1 | E23: =((3.142*(4+0.75))+(3.142*(1.833+0.75)))/2 -> 11.52 | F23: 0.75 | G23: 2.75 | I23: 23.76
B24: Qty | D24: Total: | H24: Cft | I24: =SUM(I21:I23) -> 46.15 | N24: =+I24*$J$57 -> 11,998.23 | O24: =+I24*J21*$J$57 -> 3,839,434
A25: =+A20+1 -> 6 | B25: Plaster Work with 1:3 C/S Mortar
B26: Wall (Circular) Outer Side | D26: =D23 -> 1 | E26: =3.142*(4+0.75+0.75) -> 17.28 | G26: =+G22 -> 2.00 | I26: =PRODUCT(D26:G26) -> 34.56 | J26: 45.00 | K26: =+I30*J26 -> 5,537.65
B27: Wall (Dome) Outer Side | D27: =D26 -> 1 | E27: =((3.142*(4+0.75+0.75))+(3.142*(1.833+0.75+0.75)))/2 -> 13.88 | G27: =+G23 -> 2.75 | I27: =PRODUCT(D27:G27) -> 38.16
B28: Wall (Circular) inner Side | D28: 1 | E28: =3.142*(4) -> 12.57 | G28: =+G26 -> 2.00 | I28: =PRODUCT(D28:G28) -> 25.14
B29: Wall (Dome Inner Side | D29: 1 | E29: =((3.142*(4))+(3.142*(1.833)))/2 -> 9.16 | G29: =+G27 -> 2.75 | I29: =PRODUCT(D29:G29) -> 25.20
B30: Qty | D30: Total: | H30: Sft | I30: =SUM(I26:I29) -> 123.06 | N30: =+I30*$J$57 -> 31,995.28 | O30: =+I30*J26*$J$57 -> 1,439,788
A31: =+A25+1 -> 7 | B31: Bituman Coating
B32: Wall (Circular) Outer Side | D32: =D47 -> 1 | E32: =+E26 -> 17.28 | G32: =+G26 -> 2.00 | I32: =PRODUCT(D32:G32) -> 34.56 | J32: 15.00 | K32: =I36*J32 -> 1,090.84
B33: Wall (Dome) Outer Side | D33: =D32 -> 1 | E33: =+E27 -> 13.88 | G33: =+G27 -> 2.75 | I33: =PRODUCT(D33:G33) -> 38.16
B34: Wall (Circular) inner Side | D34: 0 | E34: =+E28 -> 12.57 | G34: =+G28 -> 2.00 | I34: =PRODUCT(D34:G34) -> 0.00
B35: Wall (Dome Inner Side | D35: =+D34 -> 0 | E35: =+E29 -> 9.16 | G35: =+G29 -> 2.75 | I35: =PRODUCT(D35:G35) -> 0.00
B36: Qty | D36: Total: | H36: Sft | I36: =SUM(I32:I35) -> 72.72 | N36: =+I36*$J$57 -> 18,907.92 | O36: =+I36*J32*$J$57 -> 283,619
A37: =+A31+1 -> 8 | B37: Concrete 1:2:4
B38: Top Cover Slab | D38: =D23 -> 1 | E38: Area= | F38: =((3.14*(3.83*3.83))/4) -> 11.52 | G38: 0.75 | I38: =PRODUCT(D38:G38) -> 8.64 | J38: 340.00 | K38: =I42*J38 -> 5,415.51
B39: D/d of Manhole Cover | D39: -1 | E39: Area= | F39: =((3.14*(1.83*1.83))/4) -> 2.63 | G39: 0.75 | I39: =PRODUCT(D39:G39) -> -1.97
B40: Beching PCC | D40: =+D38 -> 1 | E40: Area= | F40: =((3.14*(4*4))/4) -> 12.56 | G40: =0.33+0.08+(0.333333333333333) -> 0.74 | I40: =PRODUCT(D40:G40) -> 9.34
B41: D/d of Pipe 6" dia | D41: -1 | E41: Area= | F41: =((3.14*(0.5*0.5))/4)/2 -> 0.10 | G41: =+G40 -> 0.74 | I41: =PRODUCT(D41:G41) -> -0.07
B42: Qty | D42: Total: | H42: Cft | I42: =SUM(I38:I41) -> 15.93 | N42: =+I42*$J$57 -> 4,141.27 | O42: =+I42*J38*$J$57 -> 1,408,033
A43: =+A37+1 -> 9 | B43: Manhole Cover 22" dia
B44: 22" dia MH Cover | D44: 1 | I44: =PRODUCT(D44:G44) -> 1.00 | J44: 5000.00 | K44: =I45*J44 -> 5,000.00
B45: Qty | D45: Total: | H45: No | I45: =SUM(I44:I44) -> 1.00 | N45: =+I45*$J$57 -> 260.00 | O45: =+I45*J44*$J$57 -> 1,300,000
A46: =+A43+1 -> 10 | B46: Malleable Iron Step
B47: Iron Step @1' C/C | D47: 1 | F47: Brick Work Height | G47: =+(G22+G23)-1 -> 3.75 | I47: =ROUND(G47,0) -> 4.00 | J47: 400.00 | K47: =I48*J47 -> 1,600.00
B48: Qty | D48: Total: | H48: No | I48: =SUM(I47:I47) -> 4.00 | N48: =+I48*$J$57 -> 1,040.00 | O48: =+I48*J47*$J$57 -> 416,000
A49: =+A46+1 -> 11 | B49: Backfill
B50: Backfill (Total Excavation) | D50: =+D9 -> 1 | G50: =I10 -> 486.00 | I50: =PRODUCT(D50:G50) -> 486.00 | J50: 12.00 | K50: =I52*J50 -> 4,122.27
B51: D/d of Manhole | D51: -1 | E51: Area | F51: =3.14*(5.5*5.5)/4 -> 23.75 | G51: =+G9 -> 6.00 | I51: =PRODUCT(D51:G51) -> -142.48
B52: Qty | D52: Total: | H52: Cft | I52: =SUM(I50:I51) -> 343.52 | N52: =+I52*$J$57 -> 89,315.85 | O52: =+I52*J50*$J$57 -> 1,071,790
I54: Cost for 10 Rft
I55: Overhead 10%
I56: Total Cost = | K56: =SUM(K8:K55) -> 52,379
I57: Total of Manhole= | J57: 260 | K57: No's
I58: Grand Total Cost= | K58: =+K56*J57 -> 13,618,595 | N58: =SUM(N8:N57) -> 424,034.35 | O58: =SUM(O8:O57) -> 13,618,595

Sheet Steel Fixing (hidden)
A1: Naval Anchorage Gawadar
A2: CIVIL INFRASTRUCTURE WORKS
A4: RATE ANALYSIS
B5: Steel Fixing for Drain
B6: Item # 001 | F6: Unit | G6: 5.00 | H6: Ton
B7: Item Desc. | C7: Provid and fixing Steel for Drain including Cutting & beding in all respect to complete.
A9: A | B9: Manpower
B10: Description | D10: No. | E10: Hours | F10: Rate (Rs.) | G10: Amount (Rs.)
B11: Supervisor | D11: 1 | E11: 8.00 | F11: 134.23 | G11: =D11*E11*F11 -> 1,073.84
B12: Steel Fixer | D12: 7 | E12: 8.00 | F12: 65.19 | G12: =D12*E12*F12 -> 3,650.64
B13: Labour | D13: 10 | E13: 8.00 | F13: 65.19 | G13: 5,215.20
B17: Total Manpower (A) | G17: =SUM(G11:G15) -> 9,939.68
A18: B | B18: Materials
D19: Unit | E19: Quantity | F19: Rate (Rs.) | G19: Amount
B20: Cold Steel Wire (Aashto M-32) | D20: Ton | E20: 0.13 | F20: 104,000.00 | G20: =E20*F20 -> 13,520.00 | I20: 1.00 | J20: =+I20*1.54 -> 1.54
I21: 1 | J21: =+(1/7)*J20 -> 0.22 | K21: =+J21*35.32 -> 7.7704
I22: 2 | J22: =+J21*2 -> 0.44 | K22: =+J22*35.32 -> 15.5408
I23: 4 | J23: =+J21*4 -> 0.88 | K23: =+J23*35.32 -> 31.0816
B26: Total Materials (B) | G26: =SUM(G20:G24) -> 13,520.00
A27: C | B27: Equipment /Machinery
D28: No. | E28: Hours | F28: Rate (Rs.) | G28: Amount (Rs.)
B29: Tractor Trolley | D29: 1 | E29: 8.00 | F29: 920.00 | G29: =D29*E29*F29 -> 7,360.00
B34: Total Equipment / Machinery ( C ) | G34: =SUM(G29:G32) -> 7,360.00
B35: Summary
B37: Basic Cost For 1 Ton | G37: =G17+G26+G34 -> 30,819.68
B38: Basic Cost Per Ton | G38: =ROUND(G37/G6,2) -> 6,163.94
B39: OverHead & Profit (15)Percentage | G39: =G38*15% -> 924.59
B40: Total Cost Per Ton | G40: =G38+G39 -> 7,088.53
A41: =A1 -> Naval Anchorage Gawadar
A42: =A2 -> CIVIL INFRASTRUCTURE WORKS
A44: RATE ANALYSIS
B45: Concrete Class-A1
B46: Item # 401 a1 (i) | F46: Unit | G46: 72.00 | H46: CM
B47: Item Desc. | C47: Concrete Class-A1 (Under Ground) Ratio 1:2:4 3000 PSI Cylinder Strength
A49: A | B49: Manpower
B50: Description | D50: No. | E50: Hours | F50: Rate (Rs.) | G50: Amount (Rs.)
B51: Site Engineer | D51: 1 | E51: 20.00 | F51: 267.07 | G51: =D51*E51*F51 -> 5,341.40
B52: Concrete Plant Engineer | D52: 1 | E52: 4.00 | F52: 485.58 | G52: =D52*E52*F52 -> 1,942.32
B53: Forman Concrete | D53: 1 | E53: 24.00 | F53: 150.00 | G53: =D53*E53*F53 -> 3,600.00
B54: Supervisor | D54: 1 | E54: 24.00 | F54: 169.95 | G54: =D54*E54*F54 -> 4,078.80
B55: Surveyor | D55: 1 | E55: 20.00 | F55: 281.51 | G55: 5,630.20
B56: Assistant.Surveyor | D56: 1 | E56: 20.00 | F56: 106.83 | G56: 2,136.60
B57: Mason | D57: 8 | E57: 8.00 | F57: 118.75 | G57: 7,600.00
B58: Carpenter | D58: 10 | E58: 24.00 | F58: 125.00 | G58: 30,000.00
B59: Helper | D59: 15 | E59: 24.00 | F59: 62.50 | G59: =D59*E59*F59 -> 22,500.00
B60: Labour | D60: 10 | E60: 8.00 | F60: 62.50 | G60: =D60*E60*F60 -> 5,000.00
B62: Total Manpower (A) | G62: =SUM(G51:G60) -> 87,829.32
A63: B | B63: Materials
D64: Unit | E64: Quantity | F64: Rate (Rs.) | G64: Amount
B65: Cement | D65: Bag | E65: =(350/50)*72 -> 504.00 | F65: 535.00 | G65: =E65*F65 -> 269,640.00
B66: Local Sand | D66: Cft | E66: =17*72 -> 1224.00 | F66: 25.00 | G66: =E66*F66 -> 30,600.00 | I66: =E66/35.32 -> 34.65458664
B67: Crushed | D67: Cft | E67: =32*72 -> 2304.00 | F67: 41.00 | G67: 94,464.00 | I67: =E67/35.32 -> 65.23216308
B68: Admixture | D68: Ltr | E68: =5.25*72 -> 378.00 | F68: 72.00 | G68: 27,216.00
B69: Water | D69: 1000LIT | E69: 15.45 | F69: 120.00 | G69: 1,854.00
B70: Shuttering (A) | D70: CM | E70: 72.00 | F70: 112.79 | G70: 8,120.88
B72: Total Materials (B) | G72: =SUM(G65:G70) -> 431,894.88
A73: C | B73: Equipment /Machinery
D74: No. | E74: Hours | F74: Rate (Rs.) | G74: Amount (Rs.)
B75: Front End Loader 1.50 Cu.m | D75: 1 | E75: 2.00 | F75: 1,364.75 | G75: =D75*E75*F75 -> 2,729.50
B76: Water Tank Tow Type 12000 LTR.(INCLUDE.TRACTOR) | D76: 1 | E76: 3.00 | F76: 1,446.17 | G76: 4,338.51
B77: Concrete Batching Plant.30 CUM/H | D77: 1 | E77: 3.00 | F77: 600.00 | G77: 1,800.00
B78: Concrete Transit mixer.6 Cu.m | D78: 6 | E78: 4.00 | F78: 1,605.14 | G78: 38,523.36
B79: Pump 4'' Delivery (Diesel) | D79: 1 | E79: 2.00 | F79: 625.00 | G79: 1,250.00
B80: Vibrator (Pocker 1.5") | D80: 2 | E80: 6.00 | F80: 152.57 | G80: 1,830.84
B81: Tractor Trolley | D81: 1 | E81: 4.00 | F81: 466.03 | G81: 1,864.12
B83: Total Equipment / Machinery ( C ) | G83: =SUM(G75:G81) -> 52,336.33
B84: Summary
B86: Basic Cost For 72.00 CM | G86: =G62+G72+G83 -> 572,060.53
B87: Basic Cost Per CM | G87: =ROUND(G86/72,2) -> 7,945.29 | I87: =G87/35.315 -> 224.98
B88: Basic Cost Per CFT | G88: =ROUND(G87/35.32,2) -> 224.95
B89: OverHead & Profit (10 + 15)Percentage | G89: =G88*0.25 -> 56.24
B90: Total Cost Per CFT | G90: =ROUND(SUM(G88:G89),2) -> 281.19
A91: ROYAL ORCHARD MULTAN
A92: =A42 -> CIVIL INFRASTRUCTURE WORKS
A94: RATE ANALYSIS
B95: Concrete Class-A3
B96: Item # 401 a 3 (iii) | F96: Unit | G96: 72.00 | H96: CM
B97: Item Desc. | C97: Concrete Class-A3 (Elevated)Ratio 1:1.5:3 4000 PSI Cylinder Strength
A99: A | B99: Manpower
B100: Description | D100: No. | E100: Hours | F100: Rate (Rs.) | G100: Amount (Rs.)
B101: Site Engineer | D101: 1 | E101: 20.00 | F101: 267.07 | G101: =D101*E101*F101 -> 5,341.40
B102: Concrete Plant Engineer | D102: 1 | E102: 4.00 | F102: 485.58 | G102: =D102*E102*F102 -> 1,942.32
B103: Forman Concrete | D103: 1 | E103: 24.00 | F103: 150.00 | G103: =D103*E103*F103 -> 3,600.00
B104: Supervisor | D104: 1 | E104: 24.00 | F104: 169.95 | G104: =D104*E104*F104 -> 4,078.80
B105: Surveyor | D105: 1 | E105: 20.00 | F105: 281.51 | G105: 5,630.20
B106: Assistant.Surveyor | D106: 1 | E106: 20.00 | F106: 106.83 | G106: 2,136.60
B107: Mason | D107: 8 | E107: 8.00 | F107: 118.75 | G107: 7,600.00
B108: Carpenter | D108: 10 | E108: 24.00 | F108: 125.00 | G108: 30,000.00
B109: Helper | D109: 15 | E109: 24.00 | F109: 62.50 | G109: =D109*E109*F109 -> 22,500.00
B110: Labour | D110: 10 | E110: 8.00 | F110: 62.50 | G110: =D110*E110*F110 -> 5,000.00
B112: Total Manpower (A) | G112: =SUM(G101:G110) -> 87,829.32
A113: B | B113: Materials
D114: Unit | E114: Quantity | F114: Rate (Rs.) | G114: Amount
B115: Cement | D115: Bag | E115: =(450/50)*72 -> 648.00 | F115: 535.00 | G115: =E115*F115 -> 346,680.00
B116: Haro Sand | D116: Cft | E116: =16*72 -> 1152.00 | F116: 25.00 | G116: =E116*F116 -> 28,800.00 | I116: =E116/35.32 -> 32.61608154
B117: Crushed | D117: Cft | E117: =30*72 -> 2160.00 | F117: 41.00 | G117: 88,560.00 | I117: =E117/35.32 -> 61.15515289
B118: Admixture | D118: Ltr | E118: =6.75*72 -> 486.00 | F118: 72.00 | G118: 34,992.00
B119: Water | D119: 1000LIT | E119: 15.00 | F119: 120.00 | G119: 1,800.00
B120: Shuttering (A) | D120: CM | E120: 72.00 | F120: 2,474.00 | G120: 178,128.00
B122: Total Materials (B) | G122: =SUM(G115:G120) -> 678,960.00
A123: C | B123: Equipment /Machinery
D124: No. | E124: Hours | F124: Rate (Rs.) | G124: Amount (Rs.)
B125: Front End Loader 1.50 Cu.m | D125: 1 | E125: 2.00 | F125: 1,364.75 | G125: =D125*E125*F125 -> 2,729.50
B126: Water Tank Tow Type 12000 LTR.(INCLUDE.TRACTOR) | D126: 1 | E126: 3.00 | F126: 1,446.17 | G126: 4,338.51
B127: Concrete Batching Plant.30 CUM/H | D127: 1 | E127: 3.00 | F127: 600.00 | G127: 1,800.00
B128: Concrete Transit mixer.6 Cu.m | D128: 6 | E128: 4.00 | F128: 1,605.14 | G128: 38,523.36
B129: Pump 4'' Delivery (Diesel) | D129: 1 | E129: 2.00 | F129: 625.00 | G129: 1,250.00
B130: Vibrator (Pocker 1.5") | D130: 2 | E130: 6.00 | F130: 152.57 | G130: 1,830.84
B131: Tractor Trolley | D131: 1 | E131: 4.00 | F131: 466.03 | G131: 1,864.12
B133: Total Equipment / Machinery ( C ) | G133: =SUM(G125:G131) -> 52,336.33
B134: Summary
B136: Basic Cost For 72.00 CM | G136: =G112+G122+G133 -> 819,125.65
B137: Basic Cost Per CM | G137: =ROUND(G136/72,2) -> 11,376.75 | I137: =G137/35.315 -> 322.15
B138: Basic Cost Per CFT | G138: =ROUND(G137/35.32,2) -> 322.11
B139: OverHead & Profit (10 + 15)Percentage | G139: =G138*0.25 -> 80.53
B140: Total Cost Per CFT | G140: =ROUND(SUM(G138:G139),2) -> 402.64

Sheet Shuttering (hidden)
A1: Etihad Town Phase-II, Lahore
A2: CIVIL INFRASTRUCTURE WORKS
A4: RATE ANALYSIS
B5: Shuttering for Drain
B6: Item # 002 | F6: Unit | G6: 635.00 | H6: Sft | J6: =0.67+2+0.67 -> 3.34 | K6: =2+0.33+0.67 -> 3 | L6: =K6 -> 3 | M6: =0.67+2+0.67 -> 3.34 | N6: =SUM(J6:M6) -> 12.68 | O6: =N6*100 -> 1268
B7: Item Desc. | C7: Provid and fixing Shuttering for Drain including all asseccories to complete.
A9: A | B9: Manpower | J9: =G6/2 -> 317.5
B10: Description | D10: No. | E10: Hours | F10: Rate (Rs.) | G10: Amount (Rs.)
B11: Supervisor | D11: 1 | E11: 8.00 | F11: 134.23 | G11: =D11*E11*F11 -> 1,073.84
B12: Carpenter | D12: 4 | E12: 8.00 | F12: 65.19 | G12: =D12*E12*F12 -> 2,086.08
B13: Labour | D13: 8 | E13: 8.00 | F13: 65.19 | G13: 4,172.16
B17: Total Manpower (A) | G17: =SUM(G11:G15) -> 7,332.08
A18: B | B18: Materials
D19: Unit | E19: Quantity | F19: Rate (Rs.) | G19: Amount
B20: Special Tools | D20: Ls | E20: 1.00 | F20: 4,500.00 | G20: =E20*F20 -> 4,500.00 | I20: 1.00 | J20: =+I20*1.54 -> 1.54
I21: 1 | J21: =+(1/7)*J20 -> 0.22 | K21: =+J21*35.32 -> 7.7704
I22: 2 | J22: =+J21*2 -> 0.44 | K22: =+J22*35.32 -> 15.5408
I23: 4 | J23: =+J21*4 -> 0.88 | K23: =+J23*35.32 -> 31.0816
B26: Total Materials (B) | G26: =SUM(G20:G24) -> 4,500.00
A27: C | B27: Equipment /Machinery
D28: No. | E28: Hours | F28: Rate (Rs.) | G28: Amount (Rs.)
B29: Tractor Trolley | D29: 1 | E29: 6.00 | F29: 920.00 | G29: =D29*E29*F29 -> 5,520.00
B34: Total Equipment / Machinery ( C ) | G34: =SUM(G29:G32) -> 5,520.00
B35: Summary
B37: Basic Cost For 635 Sft. | G37: =G17+G26+G34 -> 17,352.08
B38: Basic Cost Per Sft. | G38: =ROUND(G37/G6,2) -> 27.33
B39: OverHead & Profit (15)Percentage | G39: =G38*15% -> 4.10
B40: Total Cost Per Sft. | G40: =G38+G39 -> 31.43
A41: =A1 -> Etihad Town Phase-II, Lahore
A42: =A2 -> CIVIL INFRASTRUCTURE WORKS
A44: RATE ANALYSIS
B45: Concrete Class-A1
B46: Item # 401 a1 (i) | F46: Unit | G46: 72.00 | H46: CM
B47: Item Desc. | C47: Concrete Class-A1 (Under Ground) Ratio 1:2:4 3000 PSI Cylinder Strength
A49: A | B49: Manpower
B50: Description | D50: No. | E50: Hours | F50: Rate (Rs.) | G50: Amount (Rs.)
B51: Site Engineer | D51: 1 | E51: 20.00 | F51: 267.07 | G51: =D51*E51*F51 -> 5,341.40
B52: Concrete Plant Engineer | D52: 1 | E52: 4.00 | F52: 485.58 | G52: =D52*E52*F52 -> 1,942.32
B53: Forman Concrete | D53: 1 | E53: 24.00 | F53: 150.00 | G53: =D53*E53*F53 -> 3,600.00
B54: Supervisor | D54: 1 | E54: 24.00 | F54: 169.95 | G54: =D54*E54*F54 -> 4,078.80
B55: Surveyor | D55: 1 | E55: 20.00 | F55: 281.51 | G55: 5,630.20
B56: Assistant.Surveyor | D56: 1 | E56: 20.00 | F56: 106.83 | G56: 2,136.60
B57: Mason | D57: 8 | E57: 8.00 | F57: 118.75 | G57: 7,600.00
B58: Carpenter | D58: 10 | E58: 24.00 | F58: 125.00 | G58: 30,000.00
B59: Helper | D59: 15 | E59: 24.00 | F59: 62.50 | G59: =D59*E59*F59 -> 22,500.00
B60: Labour | D60: 10 | E60: 8.00 | F60: 62.50 | G60: =D60*E60*F60 -> 5,000.00
B62: Total Manpower (A) | G62: =SUM(G51:G60) -> 87,829.32
A63: B | B63: Materials
D64: Unit | E64: Quantity | F64: Rate (Rs.) | G64: Amount
B65: Cement | D65: Bag | E65: =(350/50)*72 -> 504.00 | F65: 535.00 | G65: =E65*F65 -> 269,640.00
B66: Local Sand | D66: Cft | E66: =17*72 -> 1224.00 | F66: 25.00 | G66: =E66*F66 -> 30,600.00 | I66: =E66/35.32 -> 34.65458664
B67: Crushed | D67: Cft | E67: =32*72 -> 2304.00 | F67: 41.00 | G67: 94,464.00 | I67: =E67/35.32 -> 65.23216308
B68: Admixture | D68: Ltr | E68: =5.25*72 -> 378.00 | F68: 72.00 | G68: 27,216.00
B69: Water | D69: 1000LIT | E69: 15.45 | F69: 120.00 | G69: 1,854.00
B70: Shuttering (A) | D70: CM | E70: 72.00 | F70: 112.79 | G70: 8,120.88
B72: Total Materials (B) | G72: =SUM(G65:G70) -> 431,894.88
A73: C | B73: Equipment /Machinery
D74: No. | E74: Hours | F74: Rate (Rs.) | G74: Amount (Rs.)
B75: Front End Loader 1.50 Cu.m | D75: 1 | E75: 2.00 | F75: 1,364.75 | G75: =D75*E75*F75 -> 2,729.50
B76: Water Tank Tow Type 12000 LTR.(INCLUDE.TRACTOR) | D76: 1 | E76: 3.00 | F76: 1,446.17 | G76: 4,338.51
B77: Concrete Batching Plant.30 CUM/H | D77: 1 | E77: 3.00 | F77: 600.00 | G77: 1,800.00
B78: Concrete Transit mixer.6 Cu.m | D78: 6 | E78: 4.00 | F78: 1,605.14 | G78: 38,523.36
B79: Pump 4'' Delivery (Diesel) | D79: 1 | E79: 2.00 | F79: 625.00 | G79: 1,250.00
B80: Vibrator (Pocker 1.5") | D80: 2 | E80: 6.00 | F80: 152.57 | G80: 1,830.84
B81: Tractor Trolley | D81: 1 | E81: 4.00 | F81: 466.03 | G81: 1,864.12
B83: Total Equipment / Machinery ( C ) | G83: =SUM(G75:G81) -> 52,336.33
B84: Summary
B86: Basic Cost For 72.00 CM | G86: =G62+G72+G83 -> 572,060.53
B87: Basic Cost Per CM | G87: =ROUND(G86/72,2) -> 7,945.29 | I87: =G87/35.315 -> 224.98
B88: Basic Cost Per CFT | G88: =ROUND(G87/35.32,2) -> 224.95
B89: OverHead & Profit (10 + 15)Percentage | G89: =G88*0.25 -> 56.24
B90: Total Cost Per CFT | G90: =ROUND(SUM(G88:G89),2) -> 281.19
A91: ROYAL ORCHARD MULTAN
A92: =A42 -> CIVIL INFRASTRUCTURE WORKS
A94: RATE ANALYSIS
B95: Concrete Class-A3
B96: Item # 401 a 3 (iii) | F96: Unit | G96: 72.00 | H96: CM
B97: Item Desc. | C97: Concrete Class-A3 (Elevated)Ratio 1:1.5:3 4000 PSI Cylinder Strength
A99: A | B99: Manpower
B100: Description | D100: No. | E100: Hours | F100: Rate (Rs.) | G100: Amount (Rs.)
B101: Site Engineer | D101: 1 | E101: 20.00 | F101: 267.07 | G101: =D101*E101*F101 -> 5,341.40
B102: Concrete Plant Engineer | D102: 1 | E102: 4.00 | F102: 485.58 | G102: =D102*E102*F102 -> 1,942.32
B103: Forman Concrete | D103: 1 | E103: 24.00 | F103: 150.00 | G103: =D103*E103*F103 -> 3,600.00
B104: Supervisor | D104: 1 | E104: 24.00 | F104: 169.95 | G104: =D104*E104*F104 -> 4,078.80
B105: Surveyor | D105: 1 | E105: 20.00 | F105: 281.51 | G105: 5,630.20
B106: Assistant.Surveyor | D106: 1 | E106: 20.00 | F106: 106.83 | G106: 2,136.60
B107: Mason | D107: 8 | E107: 8.00 | F107: 118.75 | G107: 7,600.00
B108: Carpenter | D108: 10 | E108: 24.00 | F108: 125.00 | G108: 30,000.00
B109: Helper | D109: 15 | E109: 24.00 | F109: 62.50 | G109: =D109*E109*F109 -> 22,500.00
B110: Labour | D110: 10 | E110: 8.00 | F110: 62.50 | G110: =D110*E110*F110 -> 5,000.00
B112: Total Manpower (A) | G112: =SUM(G101:G110) -> 87,829.32
A113: B | B113: Materials
D114: Unit | E114: Quantity | F114: Rate (Rs.) | G114: Amount
B115: Cement | D115: Bag | E115: =(450/50)*72 -> 648.00 | F115: 535.00 | G115: =E115*F115 -> 346,680.00
B116: Haro Sand | D116: Cft | E116: =16*72 -> 1152.00 | F116: 25.00 | G116: =E116*F116 -> 28,800.00 | I116: =E116/35.32 -> 32.61608154
B117: Crushed | D117: Cft | E117: =30*72 -> 2160.00 | F117: 41.00 | G117: 88,560.00 | I117: =E117/35.32 -> 61.15515289
B118: Admixture | D118: Ltr | E118: =6.75*72 -> 486.00 | F118: 72.00 | G118: 34,992.00
B119: Water | D119: 1000LIT | E119: 15.00 | F119: 120.00 | G119: 1,800.00
B120: Shuttering (A) | D120: CM | E120: 72.00 | F120: 2,474.00 | G120: 178,128.00
B122: Total Materials (B) | G122: =SUM(G115:G120) -> 678,960.00
A123: C | B123: Equipment /Machinery
D124: No. | E124: Hours | F124: Rate (Rs.) | G124: Amount (Rs.)
B125: Front End Loader 1.50 Cu.m | D125: 1 | E125: 2.00 | F125: 1,364.75 | G125: =D125*E125*F125 -> 2,729.50
B126: Water Tank Tow Type 12000 LTR.(INCLUDE.TRACTOR) | D126: 1 | E126: 3.00 | F126: 1,446.17 | G126: 4,338.51
B127: Concrete Batching Plant.30 CUM/H | D127: 1 | E127: 3.00 | F127: 600.00 | G127: 1,800.00
B128: Concrete Transit mixer.6 Cu.m | D128: 6 | E128: 4.00 | F128: 1,605.14 | G128: 38,523.36
B129: Pump 4'' Delivery (Diesel) | D129: 1 | E129: 2.00 | F129: 625.00 | G129: 1,250.00
B130: Vibrator (Pocker 1.5") | D130: 2 | E130: 6.00 | F130: 152.57 | G130: 1,830.84
B131: Tractor Trolley | D131: 1 | E131: 4.00 | F131: 466.03 | G131: 1,864.12
B133: Total Equipment / Machinery ( C ) | G133: =SUM(G125:G131) -> 52,336.33
B134: Summary
B136: Basic Cost For 72.00 CM | G136: =G112+G122+G133 -> 819,125.65
B137: Basic Cost Per CM | G137: =ROUND(G136/72,2) -> 11,376.75 | I137: =G137/35.315 -> 322.15
B138: Basic Cost Per CFT | G138: =ROUND(G137/35.32,2) -> 322.11
B139: OverHead & Profit (10 + 15)Percentage | G139: =G138*0.25 -> 80.53
B140: Total Cost Per CFT | G140: =ROUND(SUM(G138:G139),2) -> 402.64

Sheet Conc (hidden)
A1: =+Shuttering!A1 -> Etihad Town Phase-II, Lahore
A2: CIVIL INFRASTRUCTURE WORKS
A4: RATE ANALYSIS
B5: Concrete for Drain
B6: Item # 003 | F6: Unit | G6: 850.00 | H6: Cft | J6: =0.67+2+0.67 -> 3.34 | K6: =2+0.33+0.67 -> 3 | L6: =K6 -> 3 | M6: =0.67+2+0.67 -> 3.34 | N6: =SUM(J6:M6) -> 12.68 | O6: =N6*100 -> 1268
B7: Item Desc. | C7: Providing and Pouring Concrete for Drain | N7: =N6*0.67 -> 8.4956
N8: =N7*100 -> 849.56
A9: A | B9: Manpower | J9: =G6/2 -> 425
B10: Description | D10: No. | E10: Hours | F10: Rate (Rs.) | G10: Amount (Rs.)
B11: Supervisor | D11: 1 | E11: 8.00 | F11: 134.23 | G11: =D11*E11*F11 -> 1,073.84
B12: Mason | D12: 4 | E12: 8.00 | F12: 65.19 | G12: =D12*E12*F12 -> 2,086.08
B13: Labour | D13: 15 | E13: 8.00 | F13: 65.19 | G13: 7,822.80
B17: Total Manpower (A) | G17: =SUM(G11:G15) -> 10,982.72
A18: B | B18: Materials
D19: Unit | E19: Quantity | F19: Rate (Rs.) | G19: Amount
B20: Special Tools | D20: Ls | E20: 1.00 | F20: 5,500.00 | G20: =E20*F20 -> 5,500.00 | I20: 1.00 | J20: =+I20*1.54 -> 1.54
I21: 1 | J21: =+(1/7)*J20 -> 0.22 | K21: =+J21*35.32 -> 7.7704
I22: 2 | J22: =+J21*2 -> 0.44 | K22: =+J22*35.32 -> 15.5408
I23: 4 | J23: =+J21*4 -> 0.88 | K23: =+J23*35.32 -> 31.0816
B26: Total Materials (B) | G26: =SUM(G20:G24) -> 5,500.00
A27: C | B27: Equipment /Machinery
D28: No. | E28: Hours | F28: Rate (Rs.) | G28: Amount (Rs.)
B29: Tractor Trolley | D29: 1 | E29: 6.00 | F29: 920.00 | G29: =D29*E29*F29 -> 5,520.00
B30: Water Tank Bowser Type 12000 Ltr. | D30: 1 | E30: 2.00 | F30: 1,919.73 | G30: =D30*E30*F30 -> 3,839.46
J31: Water Tank Bowser Type 12000 Ltr.
B34: Total Equipment / Machinery ( C ) | G34: =SUM(G29:G32) -> 9,359.46
B35: Summary
B37: Basic Cost For 850 Cft. | G37: =G17+G26+G34 -> 25,842.18
B38: Basic Cost Per Cft. | G38: =ROUND(G37/G6,2) -> 30.40
B39: OverHead & Profit (15)Percentage | G39: =G38*15% -> 4.56
B40: Total Cost Per Cft. | G40: =G38+G39 -> 34.96
A41: =A1 -> Etihad Town Phase-II, Lahore
A42: =A2 -> CIVIL INFRASTRUCTURE WORKS
A44: RATE ANALYSIS
B45: Concrete Class-A1
B46: Item # 401 a1 (i) | F46: Unit | G46: 72.00 | H46: CM
B47: Item Desc. | C47: Concrete Class-A1 (Under Ground) Ratio 1:2:4 3000 PSI Cylinder Strength
A49: A | B49: Manpower
B50: Description | D50: No. | E50: Hours | F50: Rate (Rs.) | G50: Amount (Rs.)
B51: Site Engineer | D51: 1 | E51: 20.00 | F51: 267.07 | G51: =D51*E51*F51 -> 5,341.40
B52: Concrete Plant Engineer | D52: 1 | E52: 4.00 | F52: 485.58 | G52: =D52*E52*F52 -> 1,942.32
B53: Forman Concrete | D53: 1 | E53: 24.00 | F53: 150.00 | G53: =D53*E53*F53 -> 3,600.00
B54: Supervisor | D54: 1 | E54: 24.00 | F54: 169.95 | G54: =D54*E54*F54 -> 4,078.80
B55: Surveyor | D55: 1 | E55: 20.00 | F55: 281.51 | G55: 5,630.20
B56: Assistant.Surveyor | D56: 1 | E56: 20.00 | F56: 106.83 | G56: 2,136.60
B57: Mason | D57: 8 | E57: 8.00 | F57: 118.75 | G57: 7,600.00
B58: Carpenter | D58: 10 | E58: 24.00 | F58: 125.00 | G58: 30,000.00
B59: Helper | D59: 15 | E59: 24.00 | F59: 62.50 | G59: =D59*E59*F59 -> 22,500.00
B60: Labour | D60: 10 | E60: 8.00 | F60: 62.50 | G60: =D60*E60*F60 -> 5,000.00
B62: Total Manpower (A) | G62: =SUM(G51:G60) -> 87,829.32
A63: B | B63: Materials
D64: Unit | E64: Quantity | F64: Rate (Rs.) | G64: Amount
B65: Cement | D65: Bag | E65: =(350/50)*72 -> 504.00 | F65: 535.00 | G65: =E65*F65 -> 269,640.00
B66: Local Sand | D66: Cft | E66: =17*72 -> 1224.00 | F66: 25.00 | G66: =E66*F66 -> 30,600.00 | I66: =E66/35.32 -> 34.65458664
B67: Crushed | D67: Cft | E67: =32*72 -> 2304.00 | F67: 41.00 | G67: 94,464.00 | I67: =E67/35.32 -> 65.23216308
B68: Admixture | D68: Ltr | E68: =5.25*72 -> 378.00 | F68: 72.00 | G68: 27,216.00
B69: Water | D69: 1000LIT | E69: 15.45 | F69: 120.00 | G69: 1,854.00
B70: Shuttering (A) | D70: CM | E70: 72.00 | F70: 112.79 | G70: 8,120.88
B72: Total Materials (B) | G72: =SUM(G65:G70) -> 431,894.88
A73: C | B73: Equipment /Machinery
D74: No. | E74: Hours | F74: Rate (Rs.) | G74: Amount (Rs.)
B75: Front End Loader 1.50 Cu.m | D75: 1 | E75: 2.00 | F75: 1,364.75 | G75: =D75*E75*F75 -> 2,729.50
B76: Water Tank Tow Type 12000 LTR.(INCLUDE.TRACTOR) | D76: 1 | E76: 3.00 | F76: 1,446.17 | G76: 4,338.51
B77: Concrete Batching Plant.30 CUM/H | D77: 1 | E77: 3.00 | F77: 600.00 | G77: 1,800.00
B78: Concrete Transit mixer.6 Cu.m | D78: 6 | E78: 4.00 | F78: 1,605.14 | G78: 38,523.36
B79: Pump 4'' Delivery (Diesel) | D79: 1 | E79: 2.00 | F79: 625.00 | G79: 1,250.00
B80: Vibrator (Pocker 1.5") | D80: 2 | E80: 6.00 | F80: 152.57 | G80: 1,830.84
B81: Tractor Trolley | D81: 1 | E81: 4.00 | F81: 466.03 | G81: 1,864.12
B83: Total Equipment / Machinery ( C ) | G83: =SUM(G75:G81) -> 52,336.33
B84: Summary
B86: Basic Cost For 72.00 CM | G86: =G62+G72+G83 -> 572,060.53
B87: Basic Cost Per CM | G87: =ROUND(G86/72,2) -> 7,945.29 | I87: =G87/35.315 -> 224.98
B88: Basic Cost Per CFT | G88: =ROUND(G87/35.32,2) -> 224.95
B89: OverHead & Profit (10 + 15)Percentage | G89: =G88*0.25 -> 56.24
B90: Total Cost Per CFT | G90: =ROUND(SUM(G88:G89),2) -> 281.19
A91: ROYAL ORCHARD MULTAN
A92: =A42 -> CIVIL INFRASTRUCTURE WORKS
A94: RATE ANALYSIS
B95: Concrete Class-A3
B96: Item # 401 a 3 (iii) | F96: Unit | G96: 72.00 | H96: CM
B97: Item Desc. | C97: Concrete Class-A3 (Elevated)Ratio 1:1.5:3 4000 PSI Cylinder Strength
A99: A | B99: Manpower
B100: Description | D100: No. | E100: Hours | F100: Rate (Rs.) | G100: Amount (Rs.)
B101: Site Engineer | D101: 1 | E101: 20.00 | F101: 267.07 | G101: =D101*E101*F101 -> 5,341.40
B102: Concrete Plant Engineer | D102: 1 | E102: 4.00 | F102: 485.58 | G102: =D102*E102*F102 -> 1,942.32
B103: Forman Concrete | D103: 1 | E103: 24.00 | F103: 150.00 | G103: =D103*E103*F103 -> 3,600.00
B104: Supervisor | D104: 1 | E104: 24.00 | F104: 169.95 | G104: =D104*E104*F104 -> 4,078.80
B105: Surveyor | D105: 1 | E105: 20.00 | F105: 281.51 | G105: 5,630.20
B106: Assistant.Surveyor | D106: 1 | E106: 20.00 | F106: 106.83 | G106: 2,136.60
B107: Mason | D107: 8 | E107: 8.00 | F107: 118.75 | G107: 7,600.00
B108: Carpenter | D108: 10 | E108: 24.00 | F108: 125.00 | G108: 30,000.00
B109: Helper | D109: 15 | E109: 24.00 | F109: 62.50 | G109: =D109*E109*F109 -> 22,500.00
B110: Labour | D110: 10 | E110: 8.00 | F110: 62.50 | G110: =D110*E110*F110 -> 5,000.00
B112: Total Manpower (A) | G112: =SUM(G101:G110) -> 87,829.32
A113: B | B113: Materials
D114: Unit | E114: Quantity | F114: Rate (Rs.) | G114: Amount
B115: Cement | D115: Bag | E115: =(450/50)*72 -> 648.00 | F115: 535.00 | G115: =E115*F115 -> 346,680.00
B116: Haro Sand | D116: Cft | E116: =16*72 -> 1152.00 | F116: 25.00 | G116: =E116*F116 -> 28,800.00 | I116: =E116/35.32 -> 32.61608154
B117: Crushed | D117: Cft | E117: =30*72 -> 2160.00 | F117: 41.00 | G117: 88,560.00 | I117: =E117/35.32 -> 61.15515289
B118: Admixture | D118: Ltr | E118: =6.75*72 -> 486.00 | F118: 72.00 | G118: 34,992.00
B119: Water | D119: 1000LIT | E119: 15.00 | F119: 120.00 | G119: 1,800.00
B120: Shuttering (A) | D120: CM | E120: 72.00 | F120: 2,474.00 | G120: 178,128.00
B122: Total Materials (B) | G122: =SUM(G115:G120) -> 678,960.00
A123: C | B123: Equipment /Machinery
D124: No. | E124: Hours | F124: Rate (Rs.) | G124: Amount (Rs.)
B125: Front End Loader 1.50 Cu.m | D125: 1 | E125: 2.00 | F125: 1,364.75 | G125: =D125*E125*F125 -> 2,729.50
B126: Water Tank Tow Type 12000 LTR.(INCLUDE.TRACTOR) | D126: 1 | E126: 3.00 | F126: 1,446.17 | G126: 4,338.51
B127: Concrete Batching Plant.30 CUM/H | D127: 1 | E127: 3.00 | F127: 600.00 | G127: 1,800.00
B128: Concrete Transit mixer.6 Cu.m | D128: 6 | E128: 4.00 | F128: 1,605.14 | G128: 38,523.36
B129: Pump 4'' Delivery (Diesel) | D129: 1 | E129: 2.00 | F129: 625.00 | G129: 1,250.00
B130: Vibrator (Pocker 1.5") | D130: 2 | E130: 6.00 | F130: 152.57 | G130: 1,830.84
B131: Tractor Trolley | D131: 1 | E131: 4.00 | F131: 466.03 | G131: 1,864.12
B133: Total Equipment / Machinery ( C ) | G133: =SUM(G125:G131) -> 52,336.33
B134: Summary
B136: Basic Cost For 72.00 CM | G136: =G112+G122+G133 -> 819,125.65
B137: Basic Cost Per CM | G137: =ROUND(G136/72,2) -> 11,376.75 | I137: =G137/35.315 -> 322.15
B138: Basic Cost Per CFT | G138: =ROUND(G137/35.32,2) -> 322.11
B139: OverHead & Profit (10 + 15)Percentage | G139: =G138*0.25 -> 80.53
B140: Total Cost Per CFT | G140: =ROUND(SUM(G138:G139),2) -> 402.64

Sheet Bed Dressing (hidden)
A1: =+Conc!A1 -> Etihad Town Phase-II, Lahore
A2: CIVIL INFRASTRUCTURE WORKS
A4: RATE ANALYSIS
B5: Preparation of Drain Bed (Dressing)
B6: Item # 003 | F6: Unit | G6: 900.00 | H6: Sft. | J6: =0.67+2+0.67 -> 3.34 | K6: =2+0.33+0.67 -> 3 | L6: =K6 -> 3 | M6: =0.67+2+0.67 -> 3.34 | N6: =SUM(J6:M6) -> 12.68 | O6: =N6*100 -> 1268
B7: Item Desc. | C7: Preparation of bed for construction of Drain | N7: =N6*0.67 -> 8.4956
C8: Preparation of bed for construction of Drain | N8: =N7*100 -> 849.56
A9: A | B9: Manpower | J9: =G6/2 -> 450
B10: Description | D10: No. | E10: Hours | F10: Rate (Rs.) | G10: Amount (Rs.)
B11: Labour | D11: 2 | E11: 8.00 | F11: 65.19 | G11: =D11*E11*F11 -> 1,043.04
L13: =2+0.67+0.67+0.5+0.5 -> 4.34
L14: =L13*100 -> 434
B17: Total Manpower (A) | G17: =SUM(G11:G15) -> 1,043.04
A18: B | B18: Materials
D19: Unit | E19: Quantity | F19: Rate (Rs.) | G19: Amount
B20: Special Tools | D20: Ls | E20: 1.00 | F20: 1,500.00 | G20: =E20*F20 -> 1,500.00 | I20: 1.00 | J20: =+I20*1.54 -> 1.54
I21: 1 | J21: =+(1/7)*J20 -> 0.22 | K21: =+J21*35.32 -> 7.7704
I22: 2 | J22: =+J21*2 -> 0.44 | K22: =+J22*35.32 -> 15.5408
I23: 4 | J23: =+J21*4 -> 0.88 | K23: =+J23*35.32 -> 31.0816
B26: Total Materials (B) | G26: =SUM(G20:G24) -> 1,500.00
A27: C | B27: Equipment /Machinery
D28: No. | E28: Hours | F28: Rate (Rs.) | G28: Amount (Rs.)
J31: Water Tank Bowser Type 12000 Ltr.
B34: Total Equipment / Machinery ( C ) | G34: =SUM(G29:G32) -> 0
B35: Summary
B37: Basic Cost For 900 Sft. | G37: =G17+G26+G34 -> 2,543.04
B38: Basic Cost Per Sft. | G38: =ROUND(G37/G6,2) -> 2.83
B39: OverHead & Profit (15)Percentage | G39: =G38*15% -> 0.42
B40: Total Cost Per Sft. | G40: =G38+G39 -> 3.25
A41: =A1 -> Etihad Town Phase-II, Lahore
A42: =A2 -> CIVIL INFRASTRUCTURE WORKS
A44: RATE ANALYSIS
B45: Concrete Class-A1
B46: Item # 401 a1 (i) | F46: Unit | G46: 72.00 | H46: CM
B47: Item Desc. | C47: Concrete Class-A1 (Under Ground) Ratio 1:2:4 3000 PSI Cylinder Strength
A49: A | B49: Manpower
B50: Description | D50: No. | E50: Hours | F50: Rate (Rs.) | G50: Amount (Rs.)
B51: Site Engineer | D51: 1 | E51: 20.00 | F51: 267.07 | G51: =D51*E51*F51 -> 5,341.40
B52: Concrete Plant Engineer | D52: 1 | E52: 4.00 | F52: 485.58 | G52: =D52*E52*F52 -> 1,942.32
B53: Forman Concrete | D53: 1 | E53: 24.00 | F53: 150.00 | G53: =D53*E53*F53 -> 3,600.00
B54: Supervisor | D54: 1 | E54: 24.00 | F54: 169.95 | G54: =D54*E54*F54 -> 4,078.80
B55: Surveyor | D55: 1 | E55: 20.00 | F55: 281.51 | G55: 5,630.20
B56: Assistant.Surveyor | D56: 1 | E56: 20.00 | F56: 106.83 | G56: 2,136.60
B57: Mason | D57: 8 | E57: 8.00 | F57: 118.75 | G57: 7,600.00
B58: Carpenter | D58: 10 | E58: 24.00 | F58: 125.00 | G58: 30,000.00
B59: Helper | D59: 15 | E59: 24.00 | F59: 62.50 | G59: =D59*E59*F59 -> 22,500.00
B60: Labour | D60: 10 | E60: 8.00 | F60: 62.50 | G60: =D60*E60*F60 -> 5,000.00
B62: Total Manpower (A) | G62: =SUM(G51:G60) -> 87,829.32
A63: B | B63: Materials
D64: Unit | E64: Quantity | F64: Rate (Rs.) | G64: Amount
B65: Cement | D65: Bag | E65: =(350/50)*72 -> 504.00 | F65: 535.00 | G65: =E65*F65 -> 269,640.00
B66: Local Sand | D66: Cft | E66: =17*72 -> 1224.00 | F66: 25.00 | G66: =E66*F66 -> 30,600.00 | I66: =E66/35.32 -> 34.65458664
B67: Crushed | D67: Cft | E67: =32*72 -> 2304.00 | F67: 41.00 | G67: 94,464.00 | I67: =E67/35.32 -> 65.23216308
B68: Admixture | D68: Ltr | E68: =5.25*72 -> 378.00 | F68: 72.00 | G68: 27,216.00
B69: Water | D69: 1000LIT | E69: 15.45 | F69: 120.00 | G69: 1,854.00
B70: Shuttering (A) | D70: CM | E70: 72.00 | F70: 112.79 | G70: 8,120.88
B72: Total Materials (B) | G72: =SUM(G65:G70) -> 431,894.88
A73: C | B73: Equipment /Machinery
D74: No. | E74: Hours | F74: Rate (Rs.) | G74: Amount (Rs.)
B75: Front End Loader 1.50 Cu.m | D75: 1 | E75: 2.00 | F75: 1,364.75 | G75: =D75*E75*F75 -> 2,729.50
B76: Water Tank Tow Type 12000 LTR.(INCLUDE.TRACTOR) | D76: 1 | E76: 3.00 | F76: 1,446.17 | G76: 4,338.51
B77: Concrete Batching Plant.30 CUM/H | D77: 1 | E77: 3.00 | F77: 600.00 | G77: 1,800.00
B78: Concrete Transit mixer.6 Cu.m | D78: 6 | E78: 4.00 | F78: 1,605.14 | G78: 38,523.36
B79: Pump 4'' Delivery (Diesel) | D79: 1 | E79: 2.00 | F79: 625.00 | G79: 1,250.00
B80: Vibrator (Pocker 1.5") | D80: 2 | E80: 6.00 | F80: 152.57 | G80: 1,830.84
B81: Tractor Trolley | D81: 1 | E81: 4.00 | F81: 466.03 | G81: 1,864.12
B83: Total Equipment / Machinery ( C ) | G83: =SUM(G75:G81) -> 52,336.33
B84: Summary
B86: Basic Cost For 72.00 CM | G86: =G62+G72+G83 -> 572,060.53
B87: Basic Cost Per CM | G87: =ROUND(G86/72,2) -> 7,945.29 | I87: =G87/35.315 -> 224.98
B88: Basic Cost Per CFT | G88: =ROUND(G87/35.32,2) -> 224.95
B89: OverHead & Profit (10 + 15)Percentage | G89: =G88*0.25 -> 56.24
B90: Total Cost Per CFT | G90: =ROUND(SUM(G88:G89),2) -> 281.19
A91: ROYAL ORCHARD MULTAN
A92: =A42 -> CIVIL INFRASTRUCTURE WORKS
A94: RATE ANALYSIS
B95: Concrete Class-A3
B96: Item # 401 a 3 (iii) | F96: Unit | G96: 72.00 | H96: CM
B97: Item Desc. | C97: Concrete Class-A3 (Elevated)Ratio 1:1.5:3 4000 PSI Cylinder Strength
A99: A | B99: Manpower
B100: Description | D100: No. | E100: Hours | F100: Rate (Rs.) | G100: Amount (Rs.)
B101: Site Engineer | D101: 1 | E101: 20.00 | F101: 267.07 | G101: =D101*E101*F101 -> 5,341.40
B102: Concrete Plant Engineer | D102: 1 | E102: 4.00 | F102: 485.58 | G102: =D102*E102*F102 -> 1,942.32
B103: Forman Concrete | D103: 1 | E103: 24.00 | F103: 150.00 | G103: =D103*E103*F103 -> 3,600.00
B104: Supervisor | D104: 1 | E104: 24.00 | F104: 169.95 | G104: =D104*E104*F104 -> 4,078.80
B105: Surveyor | D105: 1 | E105: 20.00 | F105: 281.51 | G105: 5,630.20
B106: Assistant.Surveyor | D106: 1 | E106: 20.00 | F106: 106.83 | G106: 2,136.60
B107: Mason | D107: 8 | E107: 8.00 | F107: 118.75 | G107: 7,600.00
B108: Carpenter | D108: 10 | E108: 24.00 | F108: 125.00 | G108: 30,000.00
B109: Helper | D109: 15 | E109: 24.00 | F109: 62.50 | G109: =D109*E109*F109 -> 22,500.00
B110: Labour | D110: 10 | E110: 8.00 | F110: 62.50 | G110: =D110*E110*F110 -> 5,000.00
B112: Total Manpower (A) | G112: =SUM(G101:G110) -> 87,829.32
A113: B | B113: Materials
D114: Unit | E114: Quantity | F114: Rate (Rs.) | G114: Amount
B115: Cement | D115: Bag | E115: =(450/50)*72 -> 648.00 | F115: 535.00 | G115: =E115*F115 -> 346,680.00
B116: Haro Sand | D116: Cft | E116: =16*72 -> 1152.00 | F116: 25.00 | G116: =E116*F116 -> 28,800.00 | I116: =E116/35.32 -> 32.61608154
B117: Crushed | D117: Cft | E117: =30*72 -> 2160.00 | F117: 41.00 | G117: 88,560.00 | I117: =E117/35.32 -> 61.15515289
B118: Admixture | D118: Ltr | E118: =6.75*72 -> 486.00 | F118: 72.00 | G118: 34,992.00
B119: Water | D119: 1000LIT | E119: 15.00 | F119: 120.00 | G119: 1,800.00
B120: Shuttering (A) | D120: CM | E120: 72.00 | F120: 2,474.00 | G120: 178,128.00
B122: Total Materials (B) | G122: =SUM(G115:G120) -> 678,960.00
A123: C | B123: Equipment /Machinery
D124: No. | E124: Hours | F124: Rate (Rs.) | G124: Amount (Rs.)
B125: Front End Loader 1.50 Cu.m | D125: 1 | E125: 2.00 | F125: 1,364.75 | G125: =D125*E125*F125 -> 2,729.50
B126: Water Tank Tow Type 12000 LTR.(INCLUDE.TRACTOR) | D126: 1 | E126: 3.00 | F126: 1,446.17 | G126: 4,338.51
B127: Concrete Batching Plant.30 CUM/H | D127: 1 | E127: 3.00 | F127: 600.00 | G127: 1,800.00
B128: Concrete Transit mixer.6 Cu.m | D128: 6 | E128: 4.00 | F128: 1,605.14 | G128: 38,523.36
B129: Pump 4'' Delivery (Diesel) | D129: 1 | E129: 2.00 | F129: 625.00 | G129: 1,250.00
B130: Vibrator (Pocker 1.5") | D130: 2 | E130: 6.00 | F130: 152.57 | G130: 1,830.84
B131: Tractor Trolley | D131: 1 | E131: 4.00 | F131: 466.03 | G131: 1,864.12
B133: Total Equipment / Machinery ( C ) | G133: =SUM(G125:G131) -> 52,336.33
B134: Summary
B136: Basic Cost For 72.00 CM | G136: =G112+G122+G133 -> 819,125.65
B137: Basic Cost Per CM | G137: =ROUND(G136/72,2) -> 11,376.75 | I137: =G137/35.315 -> 322.15
B138: Basic Cost Per CFT | G138: =ROUND(G137/35.32,2) -> 322.11
B139: OverHead & Profit (10 + 15)Percentage | G139: =G138*0.25 -> 80.53
B140: Total Cost Per CFT | G140: =ROUND(SUM(G138:G139),2) -> 402.64
